Workbook

Sheet Sheet 1-Project Information
A1: 1.Component | B1: Military Construction Program Electronic Security Systems (ESS) Budget Estimator Ver 1.0 | D1: 2. Date
A2: Army | D2: =TODAY() -> 2022-12-23
A3: 3. Installation and Location/UIC | C3: 4. Project Title | N3: Army
C4: ESS Project | N4: Navy
A5: 5. Category Code | B5: 6. Project Number | C5: 7. User Defined | D5: 8.User Defined
A7: 9. User Input
A8: Facility
A10: A. Enter the size of the facility in square feet. | D10: 10000
F11: 1 | G11: 100000000
A13: B. Enter the number of floors. | D13: 1
F14: 1 | G14: 125
A16: C. Does this project include exterior (building facade) access control (i.e. card readers at exterior doors into the facility)? Enter Yes or No. | D16: No
F17: Please Select | G17: Yes | H17: No
A19: D. Does this project include interior volumetric sensors (i.e. interior mounted motion detectors) in areas other than the interior Secure Areas, SCIFs, or SAPFs? Enter Yes or No. | D19: No
F20: Please Select | G20: Yes | H20: No
A22: E. Does this project include interior video system in areas other than the Secure Areas, SCIFs, or SAPFs? Enter Yes or No. | D22: No
F23: Please Select | G23: Yes | H23: No
A25: Building Perimeter
A27: F. Does this project include exterior (building facade) volumetric sensors (i.e. exterior mounted motion detectors protecting critical exterior assets)? Enter Yes or No. | D27: No
F28: Please Select | G28: Yes | H28: No
A30: G. Does this project include exterior (building facade) video system (i.e. building mounted cameras viewing exterior doors and around the building)? Enter Yes or No. | D30: No
F31: Please Select | G31: Yes | H31: No
A33: Site Perimeter
A35: H. Does this project include exterior (site perimeter) access control (i.e. card readers at perimeter vehicle or pedestrian gates)? Enter Yes or No. | D35: No
F36: Please Select | G36: Yes | H36: No
A38: I. Does this project include exterior (site perimeter) intrusion detection (i.e. buried or fence mounted intrusion sensors)? Enter Yes or No. | D38: No
F39: Please Select | G39: Yes | H39: No
A41: J. Does this project include exterior (site perimeter) video system (i.e. cameras viewing perimeter boundary of site)? Enter Yes or No. | D41: No
F42: Please Select | G42: Yes | H42: No
A44: K. Enter length of perimeter fence to be protected in linear feet. | D44: 0
F45: 0 | G45: 100000000
A47: Interior Enclaves
A49: L. Does this project include interior SCIFs or SAPFs? How many? | D49: 0
F50: 0 | G50: =100 -> 100
A52: M. Enter the average size of the interior SCIFs and SAPFs in square feet. | D52: 0
F53: 0 | G53: =IF(D49=0,0,$D$10) -> 0
A55: N. Does this project include interior Secure Areas in addition to SCIFs and SAPFs? How many? | D55: 0
F56: 0 | G56: 100
A58: O. Enter the average size of the interior Secure Areas in square feet. | D58: 0
F59: 0 | G59: =IF(D55=0,0,$D$10) -> 0
A61: Site Specifics
A63: P. Does this project include local monitoring (at the facility) or remote monitoring (at a central monitoring station) of the electronic security system? Enter Locally, Remotely, or Both. | D63: Locally
F65: Please Select | G65: Locally | H65: Remotely | I65: Both
A67: Q. Does this project warrant biometric devices for access control? Enter Yes or No. | D67: No | F67: Please Select | G67: Yes | H67: No
A69: R. Does this project warrant thermal imaging for the video system cameras? Enter Yes or No. | D69: No
F70: Please Select | G70: Yes | H70: No
A72: S. Does this project warrant video analytics/video content analysis for perimeter intrusion detection? Enter Yes or No" | D72: No
F73: Please Select | G73: Yes | H73: No
A75: T. What is the overall Level of Protection requirement of the facility? Enter Low, Medium, or High. | D75: Low
F76: Please Select | G76: Low | H76: Medium | I76: High

Sheet Sheet 2-Project Budget Summary
A1: 1.Component | B1: Military Construction Program Physical Security Equipment Budget Estimator Tool | E1: 2. Date
A2: ='Sheet 1-Project Information'!A2 -> Army | E2: ='Sheet 1-Project Information'!D2 -> 2022-12-23
A3: 3. Installation and Location/UIC | D3: 4. Project Title
A4: =IF('Sheet 1-Project Information'!A4<>"",'Sheet 1-Project Information'!A4,"") ->  | D4: =IF('Sheet 1-Project Information'!C4<>"",'Sheet 1-Project Information'!C4,"") -> ESS Project
A6: 5. Category Code | B6: 6. Project Number | C6: 7. User Defined | D6: 8. User Defined | E6: 9. Project Cost
A7: =IF('Sheet 1-Project Information'!A6<>"",'Sheet 1-Project Information'!A6,"") ->  | B7: =IF('Sheet 1-Project Information'!B6<>"",'Sheet 1-Project Information'!B6,"") ->  | C7: =IF('Sheet 1-Project Information'!C6<>"",'Sheet 1-Project Information'!C6,"") ->  | D7: =IF('Sheet 1-Project Information'!D6<>"",'Sheet 1-Project Information'!D6,"") ->  | E7: =E47 -> 100000
A8: COST ESTIMATE
A9: System | C9: Supporting Infrastructure | D9: PSE Equipment | E9: Total
A10: Controlled Access Areas | C10: =IF('Sheet 1-Project Information'!D75="Low",'Sheet 3-Zone Count'!D8*'Sheet 4-Zone Budget Summary'!C4,IF('Sheet 1-Project Information'!D75="Medium",'Sheet 3-Zone Count'!D8*'Sheet 4-Zone Budget Summary'!E4,IF('Sheet 1-Project Information'!D75="High",'Sheet 3-Zone Count'!D8*'Sheet 4-Zone Budget Summary'!G4,0))) -> 0 | D10: =IF('Sheet 1-Project Information'!D75="Low",'Sheet 3-Zone Count'!D8*'Sheet 4-Zone Budget Summary'!D4,IF('Sheet 1-Project Information'!D75="Medium",'Sheet 3-Zone Count'!D8*'Sheet 4-Zone Budget Summary'!F4,IF('Sheet 1-Project Information'!D75="High",'Sheet 3-Zone Count'!D8*'Sheet 4-Zone Budget Summary'!H4,0))) -> 0 | E10: =SUM(C10:D10) -> 0
A11: Sensitive Compartmented Information Facilities | C11: =IF('Sheet 1-Project Information'!D75="Low",'Sheet 3-Zone Count'!D9*'Sheet 4-Zone Budget Summary'!C6,IF('Sheet 1-Project Information'!D75="Medium",'Sheet 3-Zone Count'!D9*'Sheet 4-Zone Budget Summary'!E6,IF('Sheet 1-Project Information'!D75="High",'Sheet 3-Zone Count'!D9*1.75*'Sheet 4-Zone Budget Summary'!G6,0))) -> 0 | D11: =IF('Sheet 1-Project Information'!D75="Low",'Sheet 3-Zone Count'!D9*'Sheet 4-Zone Budget Summary'!D6,IF('Sheet 1-Project Information'!D75="Medium",'Sheet 3-Zone Count'!D9*'Sheet 4-Zone Budget Summary'!F6,IF('Sheet 1-Project Information'!D75="High",'Sheet 3-Zone Count'!D9*'Sheet 4-Zone Budget Summary'!H6,0))) -> 0 | E11: =SUM(C11:D11) -> 0
A12: Interior Intrusion Detection Zones | C12: =IF('Sheet 1-Project Information'!D75="Low",('Sheet 3-Zone Count'!D10*'Sheet 4-Zone Budget Summary'!C9)+('Sheet 3-Zone Count'!E10*'Sheet 4-Zone Budget Summary'!C10),IF('Sheet 1-Project Information'!D75="Medium",('Sheet 3-Zone Count'!D10*'Sheet 4-Zone Budget Summary'!E9)+('Sheet 3-Zone Count'!E10*'Sheet 4-Zone Budget Summary'!E10),IF('Sheet 1-Project Information'!D75="High",('Sheet 3-Zone Count'!D10*'Sheet 4-Zone Budget Summary'!G9)+('Sheet 3-Zone Count'!E10*'Sheet 4-Zone Budget Summary'!G10),0))) -> 0 | D12: =IF('Sheet 1-Project Information'!D75="Low",('Sheet 3-Zone Count'!D10*'Sheet 4-Zone Budget Summary'!D9)+('Sheet 3-Zone Count'!E10*'Sheet 4-Zone Budget Summary'!D10),IF('Sheet 1-Project Information'!D75="Medium",('Sheet 3-Zone Count'!D10*'Sheet 4-Zone Budget Summary'!F9)+('Sheet 3-Zone Count'!E10*'Sheet 4-Zone Budget Summary'!F10),IF('Sheet 1-Project Information'!D75="High",('Sheet 3-Zone Count'!D10*'Sheet 4-Zone Budget Summary'!H9)+('Sheet 3-Zone Count'!E10*'Sheet 4-Zone Budget Summary'!H10),0))) -> 0 | E12: 0
A13: Interior Video System Zones | C13: =IF('Sheet 1-Project Information'!D75="Low",('Sheet 3-Zone Count'!D11*'Sheet 4-Zone Budget Summary'!C13)+('Sheet 3-Zone Count'!E11*'Sheet 4-Zone Budget Summary'!C14),IF('Sheet 1-Project Information'!D75="Medium",('Sheet 3-Zone Count'!D11*'Sheet 4-Zone Budget Summary'!E13)+('Sheet 3-Zone Count'!E11*'Sheet 4-Zone Budget Summary'!E14),IF('Sheet 1-Project Information'!D75="High",('Sheet 3-Zone Count'!D11*'Sheet 4-Zone Budget Summary'!G13)+('Sheet 3-Zone Count'!E11*'Sheet 4-Zone Budget Summary'!G14),0))) -> 0 | D13: =IF('Sheet 1-Project Information'!D75="Low",('Sheet 3-Zone Count'!D11*'Sheet 4-Zone Budget Summary'!D13)+('Sheet 3-Zone Count'!E11*'Sheet 4-Zone Budget Summary'!D14),IF('Sheet 1-Project Information'!D75="Medium",('Sheet 3-Zone Count'!D11*'Sheet 4-Zone Budget Summary'!F13)+('Sheet 3-Zone Count'!E11*'Sheet 4-Zone Budget Summary'!F14),IF('Sheet 1-Project Information'!D75="High",('Sheet 3-Zone Count'!D11*'Sheet 4-Zone Budget Summary'!H13)+('Sheet 3-Zone Count'!E11*'Sheet 4-Zone Budget Summary'!H14),0))) -> 0 | E13: 0
A14: Exterior (Bldg Facade) Access Control Zones | C14: =IF('Sheet 1-Project Information'!D75="Low",('Sheet 3-Zone Count'!D12*'Sheet 4-Zone Budget Summary'!C17)+('Sheet 3-Zone Count'!E12*'Sheet 4-Zone Budget Summary'!C18),IF('Sheet 1-Project Information'!D75="Medium",('Sheet 3-Zone Count'!D12*'Sheet 4-Zone Budget Summary'!E17)+('Sheet 3-Zone Count'!E12*'Sheet 4-Zone Budget Summary'!E18),IF('Sheet 1-Project Information'!D75="High",('Sheet 3-Zone Count'!D12*'Sheet 4-Zone Budget Summary'!G17)+('Sheet 3-Zone Count'!E12*'Sheet 4-Zone Budget Summary'!G18),0))) -> 0 | D14: =IF('Sheet 1-Project Information'!D75="Low",('Sheet 3-Zone Count'!D12*'Sheet 4-Zone Budget Summary'!D17)+('Sheet 3-Zone Count'!E12*'Sheet 4-Zone Budget Summary'!D18),IF('Sheet 1-Project Information'!D75="Medium",('Sheet 3-Zone Count'!D12*'Sheet 4-Zone Budget Summary'!F17)+('Sheet 3-Zone Count'!E12*'Sheet 4-Zone Budget Summary'!F18),IF('Sheet 1-Project Information'!D75="High",('Sheet 3-Zone Count'!D12*'Sheet 4-Zone Budget Summary'!H17)+('Sheet 3-Zone Count'!E12*'Sheet 4-Zone Budget Summary'!H18),0))) -> 0 | E14: 0
A15: Exterior (Bldg Facade) Intrusion Detection Zones | C15: =IF('Sheet 1-Project Information'!D75="Low",('Sheet 3-Zone Count'!D13*'Sheet 4-Zone Budget Summary'!C21)+('Sheet 3-Zone Count'!E13*'Sheet 4-Zone Budget Summary'!C22),IF('Sheet 1-Project Information'!D75="Medium",('Sheet 3-Zone Count'!D13*'Sheet 4-Zone Budget Summary'!E21)+('Sheet 3-Zone Count'!E13*'Sheet 4-Zone Budget Summary'!E22),IF('Sheet 1-Project Information'!D75="High",('Sheet 3-Zone Count'!D13*'Sheet 4-Zone Budget Summary'!G21)+('Sheet 3-Zone Count'!E13*'Sheet 4-Zone Budget Summary'!G22),0))) -> 0 | D15: =IF('Sheet 1-Project Information'!D75="Low",('Sheet 3-Zone Count'!D13*'Sheet 4-Zone Budget Summary'!D21)+('Sheet 3-Zone Count'!E13*'Sheet 4-Zone Budget Summary'!D22),IF('Sheet 1-Project Information'!D75="Medium",('Sheet 3-Zone Count'!D13*'Sheet 4-Zone Budget Summary'!F21)+('Sheet 3-Zone Count'!E13*'Sheet 4-Zone Budget Summary'!F22),IF('Sheet 1-Project Information'!D75="High",('Sheet 3-Zone Count'!D13*'Sheet 4-Zone Budget Summary'!H21)+('Sheet 3-Zone Count'!E13*'Sheet 4-Zone Budget Summary'!H22),0))) -> 0 | E15: 0
A16: Exterior (Bldg Facade) VS Zones | C16: =IF('Sheet 1-Project Information'!D75="Low",('Sheet 3-Zone Count'!D14*'Sheet 4-Zone Budget Summary'!C25)+('Sheet 3-Zone Count'!E14*'Sheet 4-Zone Budget Summary'!C26),IF('Sheet 1-Project Information'!D75="Medium",('Sheet 3-Zone Count'!D14*'Sheet 4-Zone Budget Summary'!E25)+('Sheet 3-Zone Count'!E14*'Sheet 4-Zone Budget Summary'!E26),IF('Sheet 1-Project Information'!D75="High",('Sheet 3-Zone Count'!D14*'Sheet 4-Zone Budget Summary'!G25)+('Sheet 3-Zone Count'!E14*'Sheet 4-Zone Budget Summary'!G26),0))) -> 0 | D16: =IF('Sheet 1-Project Information'!D75="Low",('Sheet 3-Zone Count'!D14*'Sheet 4-Zone Budget Summary'!D25)+('Sheet 3-Zone Count'!E14*'Sheet 4-Zone Budget Summary'!D26),IF('Sheet 1-Project Information'!D75="Medium",('Sheet 3-Zone Count'!D14*'Sheet 4-Zone Budget Summary'!F25)+('Sheet 3-Zone Count'!E14*'Sheet 4-Zone Budget Summary'!F26),IF('Sheet 1-Project Information'!D75="High",('Sheet 3-Zone Count'!D14*'Sheet 4-Zone Budget Summary'!H25)+('Sheet 3-Zone Count'!E14*'Sheet 4-Zone Budget Summary'!H26),0))) -> 0 | E16: 0
A17: Perimeter Access Control Zones | C17: =IF('Sheet 1-Project Information'!D75="Low",('Sheet 3-Zone Count'!D15*'Sheet 4-Zone Budget Summary'!C29)+('Sheet 3-Zone Count'!E15*'Sheet 4-Zone Budget Summary'!C30),IF('Sheet 1-Project Information'!D75="Medium",('Sheet 3-Zone Count'!D15*'Sheet 4-Zone Budget Summary'!E29)+('Sheet 3-Zone Count'!E15*'Sheet 4-Zone Budget Summary'!E30),IF('Sheet 1-Project Information'!D75="High",('Sheet 3-Zone Count'!D15*'Sheet 4-Zone Budget Summary'!G29)+('Sheet 3-Zone Count'!E15*'Sheet 4-Zone Budget Summary'!G30),0))) -> 0 | D17: =IF('Sheet 1-Project Information'!D75="Low",('Sheet 3-Zone Count'!D15*'Sheet 4-Zone Budget Summary'!D29)+('Sheet 3-Zone Count'!E15*'Sheet 4-Zone Budget Summary'!D30),IF('Sheet 1-Project Information'!D75="Medium",('Sheet 3-Zone Count'!D15*'Sheet 4-Zone Budget Summary'!F29)+('Sheet 3-Zone Count'!E15*'Sheet 4-Zone Budget Summary'!F30),IF('Sheet 1-Project Information'!D75="High",('Sheet 3-Zone Count'!D15*'Sheet 4-Zone Budget Summary'!H29)+('Sheet 3-Zone Count'!E15*'Sheet 4-Zone Budget Summary'!H30),0))) -> 0 | E17: 0
A18: Perimeter Intrustion Detection Zones | C18: =IF('Sheet 1-Project Information'!D75="Low",('Sheet 3-Zone Count'!D16*'Sheet 4-Zone Budget Summary'!C33)+('Sheet 3-Zone Count'!E16*'Sheet 4-Zone Budget Summary'!C34),IF('Sheet 1-Project Information'!D75="Medium",('Sheet 3-Zone Count'!D16*'Sheet 4-Zone Budget Summary'!E33)+('Sheet 3-Zone Count'!E16*'Sheet 4-Zone Budget Summary'!E34),IF('Sheet 1-Project Information'!D75="High",('Sheet 3-Zone Count'!D16*'Sheet 4-Zone Budget Summary'!G33)+('Sheet 3-Zone Count'!E16*'Sheet 4-Zone Budget Summary'!G34),0))) -> 0 | D18: =IF('Sheet 1-Project Information'!D75="Low",('Sheet 3-Zone Count'!D16*'Sheet 4-Zone Budget Summary'!D33)+('Sheet 3-Zone Count'!E16*'Sheet 4-Zone Budget Summary'!D34),IF('Sheet 1-Project Information'!D75="Medium",('Sheet 3-Zone Count'!D16*'Sheet 4-Zone Budget Summary'!F33)+('Sheet 3-Zone Count'!E16*'Sheet 4-Zone Budget Summary'!F34),IF('Sheet 1-Project Information'!D75="High",('Sheet 3-Zone Count'!D16*'Sheet 4-Zone Budget Summary'!H33)+('Sheet 3-Zone Count'!E16*'Sheet 4-Zone Budget Summary'!H34),0))) -> 0 | E18: 0
A19: Perimeter Video System Zones | C19: =IF('Sheet 1-Project Information'!D75="Low",('Sheet 3-Zone Count'!D17*'Sheet 4-Zone Budget Summary'!C37)+('Sheet 3-Zone Count'!E17*'Sheet 4-Zone Budget Summary'!C38),IF('Sheet 1-Project Information'!D75="Medium",('Sheet 3-Zone Count'!D17*'Sheet 4-Zone Budget Summary'!E37)+('Sheet 3-Zone Count'!E17*'Sheet 4-Zone Budget Summary'!E38),IF('Sheet 1-Project Information'!D75="High",('Sheet 3-Zone Count'!D17*'Sheet 4-Zone Budget Summary'!G37)+('Sheet 3-Zone Count'!E17*'Sheet 4-Zone Budget Summary'!G38),0))) -> 0 | D19: =IF('Sheet 1-Project Information'!D75="Low",('Sheet 3-Zone Count'!D17*'Sheet 4-Zone Budget Summary'!D37)+('Sheet 3-Zone Count'!E17*'Sheet 4-Zone Budget Summary'!D38),IF('Sheet 1-Project Information'!D75="Medium",('Sheet 3-Zone Count'!D17*'Sheet 4-Zone Budget Summary'!F37)+('Sheet 3-Zone Count'!E17*'Sheet 4-Zone Budget Summary'!F38),IF('Sheet 1-Project Information'!D75="High",('Sheet 3-Zone Count'!D17*'Sheet 4-Zone Budget Summary'!H37)+('Sheet 3-Zone Count'!E17*'Sheet 4-Zone Budget Summary'!H38),0))) -> 0 | E19: 0
A20: Biometric Access Control Zones | C20: =IF('Sheet 1-Project Information'!D75="Low",'Sheet 3-Zone Count'!D18*'Sheet 4-Zone Budget Summary'!C40,IF('Sheet 1-Project Information'!D75="Medium",'Sheet 3-Zone Count'!D18*'Sheet 4-Zone Budget Summary'!E40,IF('Sheet 1-Project Information'!D75="High",'Sheet 3-Zone Count'!D18*'Sheet 4-Zone Budget Summary'!G40,0))) -> 0 | D20: =IF('Sheet 1-Project Information'!D75="Low",'Sheet 3-Zone Count'!D18*'Sheet 4-Zone Budget Summary'!D40,IF('Sheet 1-Project Information'!D75="Medium",'Sheet 3-Zone Count'!D18*'Sheet 4-Zone Budget Summary'!F40,IF('Sheet 1-Project Information'!D75="High",'Sheet 3-Zone Count'!D18*'Sheet 4-Zone Budget Summary'!H40,0))) -> 0 | E20: 0
A21: Thermal Imaging Zones | C21: =IF('Sheet 1-Project Information'!D75="Low",'Sheet 3-Zone Count'!D19*'Sheet 4-Zone Budget Summary'!C42,IF('Sheet 1-Project Information'!D75="Medium",'Sheet 3-Zone Count'!D19*'Sheet 4-Zone Budget Summary'!E42,IF('Sheet 1-Project Information'!D75="High",'Sheet 3-Zone Count'!D19*'Sheet 4-Zone Budget Summary'!G42,0))) -> 0 | D21: =IF('Sheet 1-Project Information'!D75="Low",'Sheet 3-Zone Count'!D19*'Sheet 4-Zone Budget Summary'!D42,IF('Sheet 1-Project Information'!D75="Medium",'Sheet 3-Zone Count'!D19*'Sheet 4-Zone Budget Summary'!F42,IF('Sheet 1-Project Information'!D75="High",'Sheet 3-Zone Count'!D19*'Sheet 4-Zone Budget Summary'!H42,0))) -> 0 | E21: 0
A22: Video Analytic Zones | C22: =IF('Sheet 1-Project Information'!D75="Low",'Sheet 3-Zone Count'!D20*'Sheet 4-Zone Budget Summary'!C44,IF('Sheet 1-Project Information'!D75="Medium",'Sheet 3-Zone Count'!D20*'Sheet 4-Zone Budget Summary'!E44,IF('Sheet 1-Project Information'!D75="High",'Sheet 3-Zone Count'!D20*'Sheet 4-Zone Budget Summary'!G44,0))) -> 0 | D22: =IF('Sheet 1-Project Information'!D75="Low",'Sheet 3-Zone Count'!D20*'Sheet 4-Zone Budget Summary'!D44,IF('Sheet 1-Project Information'!D75="Medium",'Sheet 3-Zone Count'!D20*'Sheet 4-Zone Budget Summary'!F44,IF('Sheet 1-Project Information'!D75="High",'Sheet 3-Zone Count'!D20*'Sheet 4-Zone Budget Summary'!H44,0))) -> 0 | E22: 0
A23: Exterior (Bldg Facade) Monitored Door Zones | C23: =IF('Sheet 1-Project Information'!D75="Low",('Sheet 3-Zone Count'!D21*'Sheet 4-Zone Budget Summary'!C47)+('Sheet 3-Zone Count'!E21*'Sheet 4-Zone Budget Summary'!C48),IF('Sheet 1-Project Information'!D75="Medium",('Sheet 3-Zone Count'!D21*'Sheet 4-Zone Budget Summary'!E47)+('Sheet 3-Zone Count'!E21*'Sheet 4-Zone Budget Summary'!E48),IF('Sheet 1-Project Information'!D75="High",('Sheet 3-Zone Count'!D21*'Sheet 4-Zone Budget Summary'!G47)+('Sheet 3-Zone Count'!E21*'Sheet 4-Zone Budget Summary'!G48),0))) -> 0 | D23: =IF('Sheet 1-Project Information'!D75="Low",('Sheet 3-Zone Count'!D21*'Sheet 4-Zone Budget Summary'!D47)+('Sheet 3-Zone Count'!E21*'Sheet 4-Zone Budget Summary'!D48),IF('Sheet 1-Project Information'!D75="Medium",('Sheet 3-Zone Count'!D21*'Sheet 4-Zone Budget Summary'!F47)+('Sheet 3-Zone Count'!E21*'Sheet 4-Zone Budget Summary'!F48),IF('Sheet 1-Project Information'!D75="High",('Sheet 3-Zone Count'!D21*'Sheet 4-Zone Budget Summary'!H47)+('Sheet 3-Zone Count'!E21*'Sheet 4-Zone Budget Summary'!H48),0))) -> 0 | E23: 0
A24: ACS Local Monitoring Zones | C24: =IF(OR('Sheet 1-Project Information'!D63="Locally",'Sheet 1-Project Information'!D63="Both"),IF('Sheet 1-Project Information'!D75="Low",('Sheet 3-Zone Count'!D22*'Sheet 4-Zone Budget Summary'!C51)+('Sheet 3-Zone Count'!E22*'Sheet 4-Zone Budget Summary'!C52),IF('Sheet 1-Project Information'!D75="Medium",('Sheet 3-Zone Count'!D22*'Sheet 4-Zone Budget Summary'!E51)+('Sheet 3-Zone Count'!E22*'Sheet 4-Zone Budget Summary'!E52),IF('Sheet 1-Project Information'!D75="High",('Sheet 3-Zone Count'!D22*'Sheet 4-Zone Budget Summary'!G51)+('Sheet 3-Zone Count'!E22*'Sheet 4-Zone Budget Summary'!G52)))),0) -> 0 | D24: =IF(OR('Sheet 1-Project Information'!D63="Locally",'Sheet 1-Project Information'!D63="Both"),IF('Sheet 1-Project Information'!D75="Low",('Sheet 3-Zone Count'!D22*'Sheet 4-Zone Budget Summary'!D51)+('Sheet 3-Zone Count'!E22*'Sheet 4-Zone Budget Summary'!D52),IF('Sheet 1-Project Information'!D75="Medium",('Sheet 3-Zone Count'!D22*'Sheet 4-Zone Budget Summary'!F51)+('Sheet 3-Zone Count'!E22*'Sheet 4-Zone Budget Summary'!F52),IF('Sheet 1-Project Information'!D75="High",'Sheet 3-Zone Count'!D22*'Sheet 4-Zone Budget Summary'!H51+'Sheet 3-Zone Count'!E22*'Sheet 4-Zone Budget Summary'!H52))),0) -> 0 | E24: 0
A25: VS Local Monitoring Zones | C25: =IF(OR('Sheet 1-Project Information'!D63="Locally",'Sheet 1-Project Information'!D63="Both"),IF('Sheet 1-Project Information'!D75="Low",('Sheet 3-Zone Count'!D23*'Sheet 4-Zone Budget Summary'!C55)+('Sheet 3-Zone Count'!E23*'Sheet 4-Zone Budget Summary'!C56),IF('Sheet 1-Project Information'!D75="Medium",('Sheet 3-Zone Count'!D23*'Sheet 4-Zone Budget Summary'!E55)+('Sheet 3-Zone Count'!E23*'Sheet 4-Zone Budget Summary'!E56),IF('Sheet 1-Project Information'!D75="High",('Sheet 3-Zone Count'!D23*'Sheet 4-Zone Budget Summary'!G55)+('Sheet 3-Zone Count'!E23*'Sheet 4-Zone Budget Summary'!G56)))),0) -> 0 | D25: =IF(OR('Sheet 1-Project Information'!D63="Locally",'Sheet 1-Project Information'!D63="Both"), IF('Sheet 1-Project Information'!D75="Low",('Sheet 3-Zone Count'!D23*'Sheet 4-Zone Budget Summary'!D55)+('Sheet 3-Zone Count'!E23*'Sheet 4-Zone Budget Summary'!D56),IF('Sheet 1-Project Information'!D75="Medium",('Sheet 3-Zone Count'!D23*'Sheet 4-Zone Budget Summary'!F55)+('Sheet 3-Zone Count'!E23*'Sheet 4-Zone Budget Summary'!F56),IF('Sheet 1-Project Information'!D75="High",('Sheet 3-Zone Count'!D23*'Sheet 4-Zone Budget Summary'!H55)+('Sheet 3-Zone Count'!E23*'Sheet 4-Zone Budget Summary'!H56)))),0) -> 0 | E25: 0
A26: ACS Remote Monitoring Zones | C26: =IF(OR('Sheet 1-Project Information'!D63="Remotely",'Sheet 1-Project Information'!D63="Both"),IF('Sheet 1-Project Information'!D75="Low",('Sheet 3-Zone Count'!D24*'Sheet 4-Zone Budget Summary'!C59)+('Sheet 3-Zone Count'!E24*'Sheet 4-Zone Budget Summary'!C60),IF('Sheet 1-Project Information'!D75="Medium",('Sheet 3-Zone Count'!D24*'Sheet 4-Zone Budget Summary'!E59)+('Sheet 3-Zone Count'!E24*'Sheet 4-Zone Budget Summary'!E60),IF('Sheet 1-Project Information'!D75="High",('Sheet 3-Zone Count'!D24*'Sheet 4-Zone Budget Summary'!G59)+('Sheet 3-Zone Count'!E24*'Sheet 4-Zone Budget Summary'!G60)))),0) -> 0 | D26: =IF(OR('Sheet 1-Project Information'!D63="Remotely",'Sheet 1-Project Information'!D63="Both"),IF('Sheet 1-Project Information'!D75="Low",('Sheet 3-Zone Count'!D24*'Sheet 4-Zone Budget Summary'!D59)+('Sheet 3-Zone Count'!E24*'Sheet 4-Zone Budget Summary'!D60),IF('Sheet 1-Project Information'!D75="Medium",('Sheet 3-Zone Count'!D24*'Sheet 4-Zone Budget Summary'!F59)+('Sheet 3-Zone Count'!E24*'Sheet 4-Zone Budget Summary'!F60),IF('Sheet 1-Project Information'!D75="High",('Sheet 3-Zone Count'!D24*'Sheet 4-Zone Budget Summary'!H59)+('Sheet 3-Zone Count'!E24*'Sheet 4-Zone Budget Summary'!H60)))),0) -> 0 | E26: 0
A27: VS Remote Monitoring Zones | C27: =IF(OR('Sheet 1-Project Information'!D63="Remotely",'Sheet 1-Project Information'!D63="Both"),IF('Sheet 1-Project Information'!D75="Low",('Sheet 3-Zone Count'!D25*'Sheet 4-Zone Budget Summary'!C63)+('Sheet 3-Zone Count'!E25*'Sheet 4-Zone Budget Summary'!C64),IF('Sheet 1-Project Information'!D75="Medium",('Sheet 3-Zone Count'!D25*'Sheet 4-Zone Budget Summary'!E63)+('Sheet 3-Zone Count'!E25*'Sheet 4-Zone Budget Summary'!E64),IF('Sheet 1-Project Information'!D75="High",('Sheet 3-Zone Count'!D25*'Sheet 4-Zone Budget Summary'!G63)+('Sheet 3-Zone Count'!E25*'Sheet 4-Zone Budget Summary'!G64)))),0) -> 0 | D27: =IF(OR('Sheet 1-Project Information'!D63="Remotely",'Sheet 1-Project Information'!D63="Both"),IF('Sheet 1-Project Information'!D75="Low",('Sheet 3-Zone Count'!D25*'Sheet 4-Zone Budget Summary'!D63)+('Sheet 3-Zone Count'!E25*'Sheet 4-Zone Budget Summary'!D64),IF('Sheet 1-Project Information'!D75="Medium",('Sheet 3-Zone Count'!D25*'Sheet 4-Zone Budget Summary'!F63)+('Sheet 3-Zone Count'!E25*'Sheet 4-Zone Budget Summary'!F64),IF('Sheet 1-Project Information'!D75="High",('Sheet 3-Zone Count'!D25*'Sheet 4-Zone Budget Summary'!H63)+('Sheet 3-Zone Count'!E25*'Sheet 4-Zone Budget Summary'!H64)))),0) -> 0 | E27: 0
A29: SUBTOTAL | C29: =SUM(C10:C28) -> 0 | D29: =SUM(D10:D28) -> 0 | E29: =SUM(E10:E27) -> 0
A31: User Input (only applied to PSE Equipment)
A32: 1. ACF | B32: 1 | D32: =(B32*D29)-D29 -> 0 | F32: 0.01 | G32: 5
A33: 2. Contingency | B33: 5 | C33: % | D33: =B33/100*SUM(D29:D32) -> 0 | F33: 0.01 | G33: 100
A34: 3. SIOH | B34: 8 | C34: % | D34: =B34/100*SUM(D29:D33) -> 0 | F34: 0.01 | G34: 20
A35: 4. Escalation from 2021 | B35: 1 | D35: =(B35*SUM(D29:D34))-SUM(D29:D34) -> 0 | F35: 1 | G35: 1.5
A36: 5. Contract Acquisition Cost | B36: 0 | D36: =B36 -> 0
A37: 6. Cybersecurity Risk Management | B37: 100000 | D37: =B37 -> 100000
A38: 7. Enter Subcontractor's Material Markup1 | B38: 10 | C38: % | F38: 1 | G38: 50
A39: 8. Enter Subcontractor's Equipment Markup2 | B39: 10 | C39: % | F39: 1 | G39: 50
A40: 9. Enter Electrical Subcontractor's O&P3 | B40: 49 | C40: % | F40: 1 | G40: 100
A41: 10. Enter General Contractor's Markup4 | B41: 10 | C41: % | F41: 1 | G41: 50
A42: 11. Labor Factor | B42: 1 | F42: 1 | G42: 50
A44: User Input (for Mobilization/Per Diem Outside of United States)
A45: 11. Outside United States | B45: 0 | D45: =B45 -> 0
A47: TOTAL | C47: =SUM(C29:C35) -> 0 | D47: =SUM(D29:D46) -> 100000 | E47: =SUM(C47:D47) -> 100000
A49: Total Real Property (MILCON) Request | B49: =C47 -> 0
A50: Total Personal Property (OPA) Request | B50: =D47 -> 100000
A53: Notes
A54: 1. Material markup as recommended in 2021 RSMeans Building Construction Cost Data, Pg 3. Password authorization required for changes.
A55: 2. Equipment profit as recommended in 2021 RSMeans Building Construction Cost Data, Pg 3. Password authorization required for changes.
A56: 3. Electrician loaded rate with O&P of $63.70 per hour. 2021 RSMeans Building Construction Cost Data, inside back cover. Password authorization required for changes.
A57: 4. General contractor markup as recommended in 2021 RSMeans Building Construction Cost Data, pg 2. Password authorization required for changes.

Sheet Sheet 3-Zone Count
L1: Note
A2: Interior square footage less SCIFs, SAPFs, and Secure Areas | C2: =ROUNDUP('Sheet 1-Project Information'!D10-(('Sheet 1-Project Information'!D49*'Sheet 1-Project Information'!D52)+('Sheet 1-Project Information'!D55*'Sheet 1-Project Information'!D58)),0) -> 10000
A3: Estimated length (ft) of building perimeter | C3: =IF('Sheet 1-Project Information'!D13>0,ROUNDUP(1.4*(4*(('Sheet 1-Project Information'!D10/'Sheet 1-Project Information'!D13)^0.5)),0),0) -> 560 | L3: 19
A4: Estimated number of exterior pedestrian doors | C4: =ROUNDUP(C3/50,0) -> 12 | L4: 20
H6: Zone Size/Count Factors
A7: System | C7: Total Zones | D7: Base Zones | E7: Incr. Zones | F7: Unit | H7: Low Risk | I7: Medium Risk | J7: High Risk | L7: Note
A8: Secure Area | C8: ='Sheet 1-Project Information'!D55 -> 0 | D8: =C8 -> 0 | E8: =C8-D8 -> 0 | F8: Ea | H8: 1 | I8: 1 | J8: 1 | L8: 1
A9: Sensitive Compartmented Information Facility (SCIF) or Special Access Program Facility (SAPF) | C9: ='Sheet 1-Project Information'!D49 -> 0 | D9: =C9 -> 0 | E9: 0 | F9: Ea | H9: 1 | I9: 1 | J9: 1 | L9: 2
A10: Interior Intrusion Detection Zone | C10: =IF('Sheet 1-Project Information'!D19="Yes",ROUNDUP(IF('Sheet 1-Project Information'!D75="Low",C2/H10,IF('Sheet 1-Project Information'!D75="Medium",C2/I10,IF('Sheet 1-Project Information'!D75="High",C2/J10))),0),0) -> 0 | D10: =ROUNDUP(C10/16,0) -> 0 | E10: 0 | F10: Sf | H10: 15400 | I10: 7700 | J10: 3850 | L10: 3
A11: Interior Video System Zone | C11: =IF('Sheet 1-Project Information'!D22="Yes",ROUNDUP(IF('Sheet 1-Project Information'!D75="Low",C2/H11,IF('Sheet 1-Project Information'!D75="Medium",C2/I11,IF('Sheet 1-Project Information'!D75="High",C2/J11))),0),0) -> 0 | D11: 0 | E11: 0 | F11: Sf | H11: 15400 | I11: 7700 | J11: 3850 | L11: 4
A12: Exterior (Bldg Facade) Access Control Zone | C12: =IF('Sheet 1-Project Information'!D16="Yes",ROUNDUP(IF('Sheet 1-Project Information'!D75="Low",C4*H12, IF('Sheet 1-Project Information'!D75="Medium",C4*I12,IF('Sheet 1-Project Information'!D75="High",C4*J12))),0),0) -> 0 | D12: 0 | E12: 0 | F12: Ea | H12: 0.25 | I12: 0.25 | J12: 0.1 | L12: 5
A13: Exterior (Bldg Facade) Intrusion Detection Zone | C13: =IF('Sheet 1-Project Information'!D27="Yes",ROUNDUP(IF('Sheet 1-Project Information'!D75="Low",C3/H13,IF('Sheet 1-Project Information'!D75="Medium",C3/I13,IF('Sheet 1-Project Information'!D75="High",C3/J13))),0),0) -> 0 | D13: 0 | E13: 0 | F13: Lf | H13: 400 | I13: 200 | J13: 100 | L13: 6
A14: Exterior (Bldg Facade) Video System Zone | C14: =IF('Sheet 1-Project Information'!D30="Yes",ROUNDUP(IF('Sheet 1-Project Information'!D75="Low",C3/H14,IF('Sheet 1-Project Information'!D75="Medium",C3/I14,IF('Sheet 1-Project Information'!D75="High",C12+(C3/J14)))),0),0) -> 0 | D14: 0 | E14: 0 | F14: Lf | H14: 600 | I14: 300 | J14: 300 | L14: 7
A15: Perimeter Access Control Zone | C15: =IF('Sheet 1-Project Information'!D35="Yes",4,0) -> 0 | D15: 0 | E15: 0 | F15: Lf | H15: 1 | I15: 1 | J15: 1 | L15: 8
A16: Perimeter Intrusion Detection Zone | C16: =IF('Sheet 1-Project Information'!D38="Yes",ROUNDUP(IF('Sheet 1-Project Information'!D75="Low",'Sheet 1-Project Information'!D44/H16, IF('Sheet 1-Project Information'!D75="Medium",'Sheet 1-Project Information'!D44/I16,IF('Sheet 1-Project Information'!D75="High",'Sheet 1-Project Information'!D44/J16))),0),0) -> 0 | D16: 0 | E16: 0 | F16: Ea | H16: 300 | I16: 300 | J16: 300 | L16: 9
A17: Perimeter Video System Zone | C17: =IF('Sheet 1-Project Information'!D41="Yes",ROUNDUP(IF('Sheet 1-Project Information'!D75="Low",'Sheet 1-Project Information'!D44/H17,IF('Sheet 1-Project Information'!D75="Medium",'Sheet 1-Project Information'!D44/I17,IF('Sheet 1-Project Information'!D75="High",'Sheet 1-Project Information'!D44/J17))),0),0) -> 0 | D17: 0 | E17: 0 | F17: Lf | H17: 300 | I17: 300 | J17: 300 | L17: 10
A18: Biometric Access Control Zone | C18: =IF('Sheet 1-Project Information'!D67="Yes",C8+C9+C12+C15,0) -> 0 | D18: =C18 -> 0 | E18: 0 | F18: Ea | H18: 1 | I18: 1 | J18: 1 | L18: 11
A19: Thermal Imaging Zone | C19: =IF('Sheet 1-Project Information'!D69="Yes",ROUNDUP(IF('Sheet 1-Project Information'!D75="Low",'Sheet 1-Project Information'!D44/H19, IF('Sheet 1-Project Information'!D75="Medium",'Sheet 1-Project Information'!D44/'Sheet 3-Zone Count'!I19,IF('Sheet 1-Project Information'!D75="High",'Sheet 1-Project Information'!D44/J19))),0),0) -> 0 | D19: =C19 -> 0 | E19: 0 | F19: Lf | H19: 3280 | I19: 3280 | J19: 1640 | L19: 12
A20: Video Analytic Zone | C20: =IF('Sheet 1-Project Information'!D72="Yes",C14+C17-C19,0) -> 0 | D20: =C20 -> 0 | E20: 0 | F20: Ea | H20: 1 | I20: 1 | J20: 1 | L20: 13
A21: Exterior (Bldg Facade) Monitored Door Zone | C21: =IF('Sheet 1-Project Information'!D27="Yes",C4-C12,0) -> 0 | D21: =ROUNDUP(C21/16,) -> 0 | E21: 0 | F21: Ea | H21: 1 | I21: 1 | J21: 1 | L21: 14
A22: ACS Local Monitoring Zone | C22: =IF(OR('Sheet 1-Project Information'!D63="Locally",'Sheet 1-Project Information'!D63="Both"),ROUNDUP((C12+C15)/H22,0),0) -> 0 | D22: =IF(C22>0,1,0) -> 0 | E22: 0 | F22: Ea | H22: 32 | I22: 32 | J22: 32 | L22: 15
A23: VS Local Monitoring Zone | C23: =IF(OR('Sheet 1-Project Information'!D63="Locally",'Sheet 1-Project Information'!D63="Both"),ROUNDUP((C11+C14+C17)/H23,0),0) -> 0 | D23: =IF(C23>0,1,0) -> 0 | E23: 0 | F23: Ea | H23: 16 | I23: 16 | J23: 16 | L23: 16
A24: ACS Remote Monitoring Zone | C24: =IF(OR('Sheet 1-Project Information'!D63="Remotely",'Sheet 1-Project Information'!D63="Both"),ROUNDUP((C12+C15)/H24,0),0) -> 0 | D24: =IF(C24>0,1,0) -> 0 | E24: 0 | F24: Ea | H24: 32 | I24: 32 | J24: 32 | L24: 17
A25: VS Remote Monitoring Zone | C25: =IF(OR('Sheet 1-Project Information'!D63="Remotely",'Sheet 1-Project Information'!D63="Both"), ROUNDUP((C11+C14+C17)/H23,0),0) -> 0 | D25: =IF(C25>0,1,0) -> 0 | E25: 0 | F25: Ea | H25: 16 | I25: 16 | J25: 16 | L25: 18
A28: Notes
A29: 1. Number of zones provided by User on Project Information sheet. No size adjustment; implies cost of ESS for 1,000 SF Secure Area is the same as a 10,000 SF Secure Area.
A30: 2. Number of zones provided by User on Project Information sheet. No size adjustment; implies cost of ESS for 1,000 SF SCIF or SAPF is the same as a 10,000 SF or SAPF.
A31: 3. Number of zones determined by dividing the building square footage net of SCIFs, SAPFs and Secure Areas by the appropriate factor based on risk level. Risk level and building square footage provided by User on Project Information sheet. Number of zones rounded up the next whole number. Detection zone size for Bosch DS939 is 70' x 360-degrees (3,848 SF). Low risk detection provides 1 SF of detection per 4 SF of interior space (I.e. 1 detector per 15,400 SF). Medium risk provides 1 SF of detection per 2 SF of interior space (1 detector per 7,700 SF). High risk provides 1 SF of detection per 1 SF of interior space (1 detector per 3,850 SF). Otherwise stated: Low risk provides 25% interior coverage, medium risk 50%, and high risk 100%.
A36: 4. Number of zones determined as in number 3 above. Associate interior VS zones with interior IDS zones. Provides 1 camera per interior IDS zone.
A37: 5. Number of zones determined by multiplying estimated number of exterior pedestrian doors by appropriate factor based on risk level. Risk level provided by User. Number of zones rounded up to the next whole number. High risk facility provided with fewer entry points than Low and Medium risk facilities. High risk provides 1 entry point for every 10 exterior pedestrian doors. Low and Medium risk provides one entry point per 4 exterior pedestrian doors.
A40: 6. Number of zones determined by dividing the estimated building perimeter length by the appropriate factor based on risk level. Risk level provided by User on Project Information sheet. Number of zones rounded up the next whole number. Detection zone size for ProTech SDI-77XL-MIL is 100' x 10'. Low risk detection provides 1 LF of detection per 4 LF of building perimeter (I.e. 1 detector per 400 LF of building perimeter). Medium risk provides 1 LF of detection per 2 LF of building perimeter (1 detector per 200 LF of building perimeter). High risk provides 1 LF of detection per 1 LF of building perimeter (1 detector per 100 LF of building perimeter). Otherwise stated: Low risk provides 25% building perimeter coverage, medium risk 50%, and high risk 100%.
A45: 7. Number of zones determined by dividing the estimated building perimeter length by the appropriate factor based on risk level. Risk level and building square footage provided by User on Project Information sheet. Number of zones rounded up the next whole number. Detection zone size based on military standard VS zone size of 300' and 600'. Low risk provides 1 camera per 600 LF of building perimeter. Medium and High risk provides 1 camera per 300 LF of building perimeter. For High Risk facilities, a VS zone is also provided for each exterior (building facade) ACS Zone.
A49: 8. Number of zones set at 4 for all projects requiring perimeter ACS zones (I.e. card readers at perimeter vehicle gates).
A50: 9. Number of zones determined by dividing the site perimeter length by the appropriate factor based on risk level. Site perimeter length and risk level provided by User on Project Information sheet. Number of zones rounded up the next whole number. Detection zone size based on military standard IDS zone size of 300'. All risk categories provide detection around the entire perimeter. Low and Medium risk provide 1 layer of protection. High risk provides 2 levels of protection.
A53: 10. Number of zones determined by dividing the site perimeter length by the appropriate factor based on risk level. Site perimeter length and risk level provided by User on Project Information sheet. Number of zones rounded up the next whole number. Detection zone based on military standard VS zone size of 300' and 600'. Low and Medium risk provides 1 camera per 600 LF of site perimeter. High risk provides 1 camera per 300 LF of site perimeter
A56: 11. Number of zones is the total number of access control zones in project. Includes SCIFs, SAPFs, Secure Areas, exterior (building facade) ACS, and exterior (site perimeter) ACS zones.
A58: 12. Number of zones determined by dividing the site perimeter length by the appropriate factor based on risk level. Site perimeter length and risk level provided by User on Project Information sheet. Number of zones rounded up to the next whole number. Viewing range of EMX-8000 is 1 km (3280') for human sized object. Assume thermal cameras will only be utilized along the site perimeter and complete perimeter coverage is required. Low and Medium risk provide 1 camera per 3280 LF (1 km) of site perimeter. High risk provides 1 camera per 1640 LF (.5 km) of site perimeter.
A62: 13. Number of zones is the total number of video system zones in project less thermal imaging zones. Includes exterior (building facade and site perimeter) VS zones.
A64: 14. Number of zones determined by subtracting number of Exterior (Building Facade) ACS zones from estimated number of exterior pedestrian doors.
A65: 15. Number of zones determined by dividing the number of ACS zones (less Secure Area, SCIF and SAPF ACS zones because they have their own workstation) by appropriate factor based on risk level. Factor is constant because each workstation can only support 32 card reader controlled doors (zones). Workstation can support unlimited IDS zones
A68: 16. Number of zones determined by dividing the number of VS zones (less Secure Area, SCIF and SAPF ACS zones because they have their own workstation) by appropriate factor based on risk level. Factor is constant because each workstation can only support 16 VS cameras (zones).
A70: 17. Same as #15 above
A71: 18. Same as #16 above
A72: 19. Estimated length of building perimeter based on square footage of building and number of floors. Calculation assumes building is square or rectangular in shape. Correction factor of 40% added to estimated length based on in-house data compiled for this project.
A74: 20. Estimated number of exterior pedestrian doors based on estimated length of building perimeter (see note 19). Assumes one door per 50 linear feet of building perimeter based on in-house data compiled for this project.

Sheet Sheet 4-Zone Budget Summary
C1: Low Risk | E1: Medium Risk | G1: High Risk
A2: System | C2: Supporting Infrastructure | D2: ESS Equipment | E2: Supporting Infrastructure | F2: ESS Equipment | G2: Supporting Infrastructure | H2: ESS Equipment
A4: Controlled Access Area | C4: ='Sheet 5-Zone Budget Detail'!I77 -> 6343.25032 | D4: ='Sheet 5-Zone Budget Detail'!O77 -> 21669.54665 | E4: ='Sheet 5-Zone Budget Detail'!I116 -> 12299.52691 | F4: ='Sheet 5-Zone Budget Detail'!O116 -> 24234.29576 | G4: ='Sheet 5-Zone Budget Detail'!I177 -> 24792.54069 | H4: ='Sheet 5-Zone Budget Detail'!O177 -> 56947.18219
A6: SCIF or SAPF | C6: ='Sheet 5-Zone Budget Detail'!I291 -> 36705.09387 | D6: ='Sheet 5-Zone Budget Detail'!O291 -> 59478.6185 | E6: ='Sheet 5-Zone Budget Detail'!I291 -> 36705.09387 | F6: ='Sheet 5-Zone Budget Detail'!O291 -> 59478.6185 | G6: ='Sheet 5-Zone Budget Detail'!I291 -> 36705.09387 | H6: ='Sheet 5-Zone Budget Detail'!O291 -> 59478.6185
A8: Interior Intrustion Detection Zone
A9: Base (minimum) Cost | C9: ='Sheet 5-Zone Budget Detail'!I340 -> 4164.337925 | D9: ='Sheet 5-Zone Budget Detail'!O340 -> 5737.408501 | E9: ='Sheet 5-Zone Budget Detail'!I340 -> 4164.337925 | F9: ='Sheet 5-Zone Budget Detail'!O340 -> 5737.408501 | G9: ='Sheet 5-Zone Budget Detail'!I340 -> 4164.337925 | H9: ='Sheet 5-Zone Budget Detail'!O340 -> 5737.408501
A10: Incremental Cost per Zone | C10: ='Sheet 5-Zone Budget Detail'!I342 -> 1985.42553 | D10: ='Sheet 5-Zone Budget Detail'!O342 -> 755.763525 | E10: ='Sheet 5-Zone Budget Detail'!I342 -> 1985.42553 | F10: ='Sheet 5-Zone Budget Detail'!O342 -> 755.763525 | G10: ='Sheet 5-Zone Budget Detail'!I342 -> 1985.42553 | H10: ='Sheet 5-Zone Budget Detail'!O342 -> 755.763525
A12: Interior Video System Zone
A13: Base (minimum) Cost | C13: ='Sheet 5-Zone Budget Detail'!I379 -> 6343.25032 | D13: ='Sheet 5-Zone Budget Detail'!O379 -> 23536.42866 | E13: ='Sheet 5-Zone Budget Detail'!I379 -> 6343.25032 | F13: ='Sheet 5-Zone Budget Detail'!O379 -> 23536.42866 | G13: ='Sheet 5-Zone Budget Detail'!I379 -> 6343.25032 | H13: ='Sheet 5-Zone Budget Detail'!O379 -> 23536.42866
A14: Incremental Cost per Zone | C14: ='Sheet 5-Zone Budget Detail'!I381 -> 1985.42553 | D14: ='Sheet 5-Zone Budget Detail'!O381 -> 1462.006843 | E14: ='Sheet 5-Zone Budget Detail'!I381 -> 1985.42553 | F14: ='Sheet 5-Zone Budget Detail'!O381 -> 1462.006843 | G14: ='Sheet 5-Zone Budget Detail'!I381 -> 1985.42553 | H14: ='Sheet 5-Zone Budget Detail'!O381 -> 1462.006843
A16: Exterior (Building Facade) Access Control Zone
A17: Base (minimum) Cost | C17: ='Sheet 5-Zone Budget Detail'!I450 -> 4164.337925 | D17: ='Sheet 5-Zone Budget Detail'!O450 -> 8954.800485 | E17: ='Sheet 5-Zone Budget Detail'!I450 -> 4164.337925 | F17: ='Sheet 5-Zone Budget Detail'!O450 -> 8954.800485 | G17: ='Sheet 5-Zone Budget Detail'!I450 -> 4164.337925 | H17: ='Sheet 5-Zone Budget Detail'!O450 -> 8954.800485
A18: Incremental Cost per Zone | C18: ='Sheet 5-Zone Budget Detail'!I452 -> 1985.42553 | D18: ='Sheet 5-Zone Budget Detail'!O452 -> 5101.299845 | E18: ='Sheet 5-Zone Budget Detail'!I452 -> 1985.42553 | F18: ='Sheet 5-Zone Budget Detail'!O452 -> 5101.299845 | G18: ='Sheet 5-Zone Budget Detail'!I452 -> 1985.42553 | H18: ='Sheet 5-Zone Budget Detail'!O452 -> 5101.299845
A20: Exterior (Building Facade) Intrustion Detection Zone
A21: Base (minimum) Cost | C21: ='Sheet 5-Zone Budget Detail'!I503 -> 4164.337925 | D21: ='Sheet 5-Zone Budget Detail'!O503 -> 6537.413311 | E21: ='Sheet 5-Zone Budget Detail'!I503 -> 4164.337925 | F21: ='Sheet 5-Zone Budget Detail'!O503 -> 6537.413311 | G21: ='Sheet 5-Zone Budget Detail'!I503 -> 4164.337925 | H21: ='Sheet 5-Zone Budget Detail'!O503 -> 6537.413311
A22: Incremental Cost per Zone | C22: ='Sheet 5-Zone Budget Detail'!I505 -> 1985.42553 | D22: ='Sheet 5-Zone Budget Detail'!O505 -> 1502.682005 | E22: ='Sheet 5-Zone Budget Detail'!I505 -> 1985.42553 | F22: ='Sheet 5-Zone Budget Detail'!O505 -> 1502.682005 | G22: ='Sheet 5-Zone Budget Detail'!I505 -> 1985.42553 | H22: ='Sheet 5-Zone Budget Detail'!O505 -> 1502.682005
A24: Exterior (Building Facade) VS Zone
A25: Base (minimum) Cost | C25: ='Sheet 5-Zone Budget Detail'!I537 -> 4164.337925 | D25: ='Sheet 5-Zone Budget Detail'!O537 -> 5608.64986 | E25: ='Sheet 5-Zone Budget Detail'!I537 -> 4164.337925 | F25: ='Sheet 5-Zone Budget Detail'!O537 -> 5608.64986 | G25: ='Sheet 5-Zone Budget Detail'!I537 -> 4164.337925 | H25: ='Sheet 5-Zone Budget Detail'!O537 -> 5608.64986
A26: Incremental Cost per Zone | C26: ='Sheet 5-Zone Budget Detail'!I539 -> 1985.42553 | D26: ='Sheet 5-Zone Budget Detail'!O539 -> 5137.3531 | E26: ='Sheet 5-Zone Budget Detail'!I539 -> 1985.42553 | F26: ='Sheet 5-Zone Budget Detail'!O539 -> 5137.3531 | G26: ='Sheet 5-Zone Budget Detail'!I539 -> 1985.42553 | H26: ='Sheet 5-Zone Budget Detail'!O539 -> 5137.3531
A28: Perimeter Access Control Zone
A29: Base (minimum) Cost | C29: ='Sheet 5-Zone Budget Detail'!I602 -> 8929.359197 | D29: ='Sheet 5-Zone Budget Detail'!O602 -> 8125.779208 | E29: ='Sheet 5-Zone Budget Detail'!I602 -> 8929.359197 | F29: ='Sheet 5-Zone Budget Detail'!O602 -> 8125.779208 | G29: ='Sheet 5-Zone Budget Detail'!I602 -> 8929.359197 | H29: ='Sheet 5-Zone Budget Detail'!O602 -> 8125.779208
A30: Incremental Cost per Zone | C30: ='Sheet 5-Zone Budget Detail'!I604 -> 6750.446802 | D30: ='Sheet 5-Zone Budget Detail'!O604 -> 3781.549208 | E30: ='Sheet 5-Zone Budget Detail'!I604 -> 6750.446802 | F30: ='Sheet 5-Zone Budget Detail'!O604 -> 3781.549208 | G30: ='Sheet 5-Zone Budget Detail'!I604 -> 6750.446802 | H30: ='Sheet 5-Zone Budget Detail'!O604 -> 3781.549208
A32: Perimeter Intrustion Detection Zone
A33: Base (minimum) Cost | C33: ='Sheet 5-Zone Budget Detail'!I668 -> 11108.5414 | D33: ='Sheet 5-Zone Budget Detail'!O668 -> 29094.60155 | E33: ='Sheet 5-Zone Budget Detail'!I668 -> 11108.5414 | F33: ='Sheet 5-Zone Budget Detail'!O668 -> 29094.60155 | G33: ='Sheet 5-Zone Budget Detail'!I738 -> 20639.12356 | H33: ='Sheet 5-Zone Budget Detail'!O738 -> 36619.60931
A34: Incremental Cost per Zone | C34: ='Sheet 5-Zone Budget Detail'!I670 -> 8929.629005 | D34: ='Sheet 5-Zone Budget Detail'!O670 -> 12171.7379 | E34: ='Sheet 5-Zone Budget Detail'!I670 -> 8929.629005 | F34: ='Sheet 5-Zone Budget Detail'!O670 -> 12171.7379 | G34: ='Sheet 5-Zone Budget Detail'!I740 -> 18460.21117 | H34: ='Sheet 5-Zone Budget Detail'!O740 -> 30535.0615
A36: Perimeter VS Zone
A37: Base (minimum) Cost | C37: ='Sheet 5-Zone Budget Detail'!I792 -> 10493.19929 | D37: ='Sheet 5-Zone Budget Detail'!O792 -> 16516.59392 | E37: ='Sheet 5-Zone Budget Detail'!I792 -> 10493.19929 | F37: ='Sheet 5-Zone Budget Detail'!O792 -> 16516.59392 | G37: ='Sheet 5-Zone Budget Detail'!I792 -> 10493.19929 | H37: ='Sheet 5-Zone Budget Detail'!O792 -> 16516.59392
A38: Incremental Cost per Zone | C38: ='Sheet 5-Zone Budget Detail'!I794 -> 10493.19929 | D38: ='Sheet 5-Zone Budget Detail'!O794 -> 7970.361277 | E38: ='Sheet 5-Zone Budget Detail'!I794 -> 10493.19929 | F38: ='Sheet 5-Zone Budget Detail'!O794 -> 7970.361277 | G38: ='Sheet 5-Zone Budget Detail'!I794 -> 10493.19929 | H38: ='Sheet 5-Zone Budget Detail'!O794 -> 7970.361277
A40: Biometric Adder | C40: ='Sheet 5-Zone Budget Detail'!I822 -> 0 | D40: ='Sheet 5-Zone Budget Detail'!O822 -> 2319.16036 | E40: ='Sheet 5-Zone Budget Detail'!I822 -> 0 | F40: ='Sheet 5-Zone Budget Detail'!O822 -> 2319.16036 | G40: ='Sheet 5-Zone Budget Detail'!I822 -> 0 | H40: ='Sheet 5-Zone Budget Detail'!O822 -> 2319.16036
A42: Thermal Imaging Adder | C42: ='Sheet 5-Zone Budget Detail'!I842 -> 0 | D42: ='Sheet 5-Zone Budget Detail'!O842 -> 66339.24837 | E42: ='Sheet 5-Zone Budget Detail'!I842 -> 0 | F42: ='Sheet 5-Zone Budget Detail'!O842 -> 66339.24837 | G42: ='Sheet 5-Zone Budget Detail'!I842 -> 0 | H42: ='Sheet 5-Zone Budget Detail'!O842 -> 66339.24837
A44: Video Analytics Adder | C44: ='Sheet 5-Zone Budget Detail'!I869 -> 0 | D44: ='Sheet 5-Zone Budget Detail'!O869 -> 7857.96528 | E44: ='Sheet 5-Zone Budget Detail'!I869 -> 0 | F44: ='Sheet 5-Zone Budget Detail'!O869 -> 7857.96528 | G44: ='Sheet 5-Zone Budget Detail'!I869 -> 0 | H44: ='Sheet 5-Zone Budget Detail'!O869 -> 7857.96528
A46: Exterior (Building Facade) Montiored Door
A47: Base (minimum) Cost | C47: ='Sheet 5-Zone Budget Detail'!I918 -> 4164.337925 | D47: ='Sheet 5-Zone Budget Detail'!O918 -> 5531.111588 | E47: ='Sheet 5-Zone Budget Detail'!I918 -> 4164.337925 | F47: ='Sheet 5-Zone Budget Detail'!O918 -> 5531.111588 | G47: ='Sheet 5-Zone Budget Detail'!I918 -> 4164.337925 | H47: ='Sheet 5-Zone Budget Detail'!O918 -> 5531.111588
A48: Incremental Cost per Zone | C48: ='Sheet 5-Zone Budget Detail'!I920 -> 1985.42553 | D48: ='Sheet 5-Zone Budget Detail'!O920 -> 549.4666122 | E48: ='Sheet 5-Zone Budget Detail'!I920 -> 1985.42553 | F48: ='Sheet 5-Zone Budget Detail'!O920 -> 549.4666122 | G48: ='Sheet 5-Zone Budget Detail'!I920 -> 1985.42553 | H48: ='Sheet 5-Zone Budget Detail'!O920 -> 549.4666122
A50: ACS Local Monitoring Zone
A51: Base (minimum) Cost | C51: ='Sheet 5-Zone Budget Detail'!I948 -> 2178.912395 | D51: ='Sheet 5-Zone Budget Detail'!O948 -> 11627.32758 | E51: ='Sheet 5-Zone Budget Detail'!I948 -> 2178.912395 | F51: ='Sheet 5-Zone Budget Detail'!O948 -> 11627.32758 | G51: ='Sheet 5-Zone Budget Detail'!I948 -> 2178.912395 | H51: ='Sheet 5-Zone Budget Detail'!O948 -> 11627.32758
A52: Incremental Cost per Zone | C52: ='Sheet 5-Zone Budget Detail'!I949 -> 0 | D52: ='Sheet 5-Zone Budget Detail'!O949 -> 6000.65037 | E52: ='Sheet 5-Zone Budget Detail'!I949 -> 0 | F52: ='Sheet 5-Zone Budget Detail'!O949 -> 6000.65037 | G52: ='Sheet 5-Zone Budget Detail'!I949 -> 0 | H52: ='Sheet 5-Zone Budget Detail'!O949 -> 6000.65037
A54: VS Local Monitoring Zone
A55: Base (minimum) Cost | C55: ='Sheet 5-Zone Budget Detail'!I992 -> 4357.82479 | D55: ='Sheet 5-Zone Budget Detail'!O992 -> 28640.9479 | E55: ='Sheet 5-Zone Budget Detail'!I992 -> 4357.82479 | F55: ='Sheet 5-Zone Budget Detail'!O992 -> 28640.9479 | G55: ='Sheet 5-Zone Budget Detail'!I992 -> 4357.82479 | H55: ='Sheet 5-Zone Budget Detail'!O992 -> 28640.9479
A56: Incremental Cost per Zone | C56: ='Sheet 5-Zone Budget Detail'!I993 -> 0 | D56: ='Sheet 5-Zone Budget Detail'!O993 -> 19970.38677 | E56: ='Sheet 5-Zone Budget Detail'!I993 -> 0 | F56: ='Sheet 5-Zone Budget Detail'!O993 -> 19970.38677 | G56: ='Sheet 5-Zone Budget Detail'!I993 -> 0 | H56: ='Sheet 5-Zone Budget Detail'!O993 -> 19970.38677
A58: ACS Remote Monitoring Zone
A59: Base (minimum) Cost | C59: ='Sheet 5-Zone Budget Detail'!I1027 -> 4357.82479 | D59: ='Sheet 5-Zone Budget Detail'!O1027 -> 21671.33991 | E59: ='Sheet 5-Zone Budget Detail'!I1027 -> 4357.82479 | F59: ='Sheet 5-Zone Budget Detail'!O1027 -> 21671.33991 | G59: ='Sheet 5-Zone Budget Detail'!I1027 -> 4357.82479 | H59: ='Sheet 5-Zone Budget Detail'!O1027 -> 21671.33991
A60: Incremental Cost per Zone | C60: ='Sheet 5-Zone Budget Detail'!I1028 -> 0 | D60: ='Sheet 5-Zone Budget Detail'!O1028 -> 16044.6627 | E60: ='Sheet 5-Zone Budget Detail'!I1028 -> 0 | F60: ='Sheet 5-Zone Budget Detail'!O1028 -> 16044.6627 | G60: ='Sheet 5-Zone Budget Detail'!I1028 -> 0 | H60: ='Sheet 5-Zone Budget Detail'!O1028 -> 16044.6627
A62: VS Remote Monitoring Zone
A63: Base (minimum) Cost | C63: ='Sheet 5-Zone Budget Detail'!I1080 -> 8715.64958 | D63: ='Sheet 5-Zone Budget Detail'!O1080 -> 70260.70289 | E63: ='Sheet 5-Zone Budget Detail'!I1080 -> 8715.64958 | F63: ='Sheet 5-Zone Budget Detail'!O1080 -> 70260.70289 | G63: ='Sheet 5-Zone Budget Detail'!I1080 -> 8715.64958 | H63: ='Sheet 5-Zone Budget Detail'!O1080 -> 70260.70289
A64: Incremental Cost per Zone | C64: ='Sheet 5-Zone Budget Detail'!I1081 -> 0 | D64: ='Sheet 5-Zone Budget Detail'!O1081 -> 52919.58063 | E64: ='Sheet 5-Zone Budget Detail'!I1081 -> 0 | F64: ='Sheet 5-Zone Budget Detail'!O1081 -> 52919.58063 | G64: ='Sheet 5-Zone Budget Detail'!I1081 -> 0 | H64: ='Sheet 5-Zone Budget Detail'!O1081 -> 52919.58063

Sheet Sheet 5-Zone Budget Detail
A1: SECURE AREA
A2: A segregated, interior area within a facility where access is controlled via electronic card readers.
A3: LOW RISK
A4: Low risk Secure Area includes a total of three (3) entry points. One (1) of the entry points is equipped with a card reader and associated access control hardware (balanced magnetic switch, request to exit motion sensor and button, magnetic lock), while the other two (2) points are for emergency exit only. Cost includes standalone workstation for administration of access control system and all necessary access control system controllers, modules, enclosures, etc. for a fully operational system. Cost includes all wiring, conduit, and 120 VAC drops required to support equipment. Assumes existing LAN.
E8: Supporting Infrastructure | K8: PSE Equipment
A9: Description | C9: Unit | D9: Qty | E9: Materials | F9: Labor | G9: Labor Base | H9: Equipment | I9: Total1 | K9: Materials | L9: Labor | M9: Labor Base | N9: Equipment | O9: Total1
A11: Contactless Card Reader with Keypad | C11: Ea | D11: 1 | E11: 0 | F11: =G11*'Sheet 2-Project Budget Summary'!$B$42 -> 0 | G11: 0 | H11: 0 | I11: =$D11*(((E11*(1+'Sheet 2-Project Budget Summary'!$B$38/100))+(F11*(1+'Sheet 2-Project Budget Summary'!$B$40/100))+(H11*(1+'Sheet 2-Project Budget Summary'!$B$39/100)))*(1+'Sheet 2-Project Budget Summary'!$B$41/100)) -> 0 | K11: 700.8 | L11: =M11*'Sheet 2-Project Budget Summary'!$B$42 -> 181.697 | M11: =181.697 -> 181.697 | N11: 0 | O11: =$D11*(((K11*(1+'Sheet 2-Project Budget Summary'!$B$38/100))+(L11*(1+'Sheet 2-Project Budget Summary'!$B$40/100))+(N11*(1+'Sheet 2-Project Budget Summary'!$B$39/100)))*(1+'Sheet 2-Project Budget Summary'!$B$41/100)) -> 1145.769383
A12: (HID Prox Pro - 5355)
A14: Contactless Cards | C14: Ea | D14: 150 | E14: 0 | F14: =G14*'Sheet 2-Project Budget Summary'!$B$42 -> 0 | G14: 0 | H14: 0 | I14: =$D14*(((E14*(1+'Sheet 2-Project Budget Summary'!$B$38/100))+(F14*(1+'Sheet 2-Project Budget Summary'!$B$40/100))+(H14*(1+'Sheet 2-Project Budget Summary'!$B$39/100)))*(1+'Sheet 2-Project Budget Summary'!$B$41/100)) -> 0 | K14: 7.811 | L14: =M14*'Sheet 2-Project Budget Summary'!$B$42 -> 0 | M14: 0 | N14: 0 | O14: =$D14*(((K14*(1+'Sheet 2-Project Budget Summary'!$B$38/100))+(L14*(1+'Sheet 2-Project Budget Summary'!$B$40/100))+(N14*(1+'Sheet 2-Project Budget Summary'!$B$39/100)))*(1+'Sheet 2-Project Budget Summary'!$B$41/100)) -> 1417.6965
A15: (HID ISOProx II-1386LGGSN or HID iClass 2002PGGMN)
A17: Balanced Magnetic Switch | C17: Ea | D17: 1 | E17: 0 | F17: =G17*'Sheet 2-Project Budget Summary'!$B$42 -> 0 | G17: 0 | H17: 0 | I17: =$D17*(((E17*(1+'Sheet 2-Project Budget Summary'!$B$38/100))+(F17*(1+'Sheet 2-Project Budget Summary'!$B$40/100))+(H17*(1+'Sheet 2-Project Budget Summary'!$B$39/100)))*(1+'Sheet 2-Project Budget Summary'!$B$41/100)) -> 0 | K17: 21.827 | L17: =M17*'Sheet 2-Project Budget Summary'!$B$42 -> 92.5348 | M17: 92.5348 | N17: 0 | O17: =$D17*(((K17*(1+'Sheet 2-Project Budget Summary'!$B$38/100))+(L17*(1+'Sheet 2-Project Budget Summary'!$B$40/100))+(N17*(1+'Sheet 2-Project Budget Summary'!$B$39/100)))*(1+'Sheet 2-Project Budget Summary'!$B$41/100)) -> 178.0752072
A18: (GE 1076D)
A20: Request-to-Exit Motion Detector | C20: Ea | D20: 1 | E20: 0 | F20: =G20*'Sheet 2-Project Budget Summary'!$B$42 -> 0 | G20: 0 | H20: 0 | I20: =$D20*(((E20*(1+'Sheet 2-Project Budget Summary'!$B$38/100))+(F20*(1+'Sheet 2-Project Budget Summary'!$B$40/100))+(H20*(1+'Sheet 2-Project Budget Summary'!$B$39/100)))*(1+'Sheet 2-Project Budget Summary'!$B$41/100)) -> 0 | K20: 94.827 | L20: =M20*'Sheet 2-Project Budget Summary'!$B$42 -> 213.2768 | M20: 213.2768 | N20: 0 | O20: =$D20*(((K20*(1+'Sheet 2-Project Budget Summary'!$B$38/100))+(L20*(1+'Sheet 2-Project Budget Summary'!$B$40/100))+(N20*(1+'Sheet 2-Project Budget Summary'!$B$39/100)))*(1+'Sheet 2-Project Budget Summary'!$B$41/100)) -> 464.3013452
A21: (Detection Systems 150i)
A23: Magnetic Lock | C23: Ea | D23: 1 | E23: 0 | F23: =G23*'Sheet 2-Project Budget Summary'!$B$42 -> 0 | G23: 0 | H23: 0 | I23: =$D23*(((E23*(1+'Sheet 2-Project Budget Summary'!$B$38/100))+(F23*(1+'Sheet 2-Project Budget Summary'!$B$40/100))+(H23*(1+'Sheet 2-Project Budget Summary'!$B$39/100)))*(1+'Sheet 2-Project Budget Summary'!$B$41/100)) -> 0 | K23: 383.907 | L23: =M23*'Sheet 2-Project Budget Summary'!$B$42 -> 245.28 | M23: 245.28 | N23: 0 | O23: =$D23*(((K23*(1+'Sheet 2-Project Budget Summary'!$B$38/100))+(L23*(1+'Sheet 2-Project Budget Summary'!$B$40/100))+(N23*(1+'Sheet 2-Project Budget Summary'!$B$39/100)))*(1+'Sheet 2-Project Budget Summary'!$B$41/100)) -> 866.54139
A24: (Locknetics 390 Plus)
A26: Request-to-Exit Button | C26: Ea | D26: 1 | E26: 0 | F26: =G26*'Sheet 2-Project Budget Summary'!$B$42 -> 0 | G26: 0 | H26: 0 | I26: =$D26*(((E26*(1+'Sheet 2-Project Budget Summary'!$B$38/100))+(F26*(1+'Sheet 2-Project Budget Summary'!$B$40/100))+(H26*(1+'Sheet 2-Project Budget Summary'!$B$39/100)))*(1+'Sheet 2-Project Budget Summary'!$B$41/100)) -> 0 | K26: 99.207 | L26: =M26*'Sheet 2-Project Budget Summary'!$B$42 -> 61.32 | M26: 61.32 | N26: 0 | O26: =$D26*(((K26*(1+'Sheet 2-Project Budget Summary'!$B$38/100))+(L26*(1+'Sheet 2-Project Budget Summary'!$B$40/100))+(N26*(1+'Sheet 2-Project Budget Summary'!$B$39/100)))*(1+'Sheet 2-Project Budget Summary'!$B$41/100)) -> 220.54395
A27: (Securitron SN-PB5)
A29: Panel and Power Supply | C29: Ea | D29: 1 | E29: 0 | F29: =G29*'Sheet 2-Project Budget Summary'!$B$42 -> 0 | G29: 0 | H29: 0 | I29: =$D29*(((E29*(1+'Sheet 2-Project Budget Summary'!$B$38/100))+(F29*(1+'Sheet 2-Project Budget Summary'!$B$40/100))+(H29*(1+'Sheet 2-Project Budget Summary'!$B$39/100)))*(1+'Sheet 2-Project Budget Summary'!$B$41/100)) -> 0 | K29: 366.825 | L29: =M29*'Sheet 2-Project Budget Summary'!$B$42 -> 122.64 | M29: 122.64 | N29: 0 | O29: =$D29*(((K29*(1+'Sheet 2-Project Budget Summary'!$B$38/100))+(L29*(1+'Sheet 2-Project Budget Summary'!$B$40/100))+(N29*(1+'Sheet 2-Project Budget Summary'!$B$39/100)))*(1+'Sheet 2-Project Budget Summary'!$B$41/100)) -> 644.86521
A30: (Lenel LNL-OLS75CTX)
A32: Battery Back-Up for ACS Panel | C32: Ea | D32: 1 | E32: 0 | F32: =G32*'Sheet 2-Project Budget Summary'!$B$42 -> 0 | G32: 0 | H32: 0 | I32: =$D32*(((E32*(1+'Sheet 2-Project Budget Summary'!$B$38/100))+(F32*(1+'Sheet 2-Project Budget Summary'!$B$40/100))+(H32*(1+'Sheet 2-Project Budget Summary'!$B$39/100)))*(1+'Sheet 2-Project Budget Summary'!$B$41/100)) -> 0 | K32: 75.555 | L32: =M32*'Sheet 2-Project Budget Summary'!$B$42 -> 15.33 | M32: 15.33 | N32: 0 | O32: =$D32*(((K32*(1+'Sheet 2-Project Budget Summary'!$B$38/100))+(L32*(1+'Sheet 2-Project Budget Summary'!$B$40/100))+(N32*(1+'Sheet 2-Project Budget Summary'!$B$39/100)))*(1+'Sheet 2-Project Budget Summary'!$B$41/100)) -> 116.54742
A33: (Lenel ABT-12)
A35: Ethernet Module to Connect to LAN | C35: Ea | D35: 1 | E35: 0 | F35: =G35*'Sheet 2-Project Budget Summary'!$B$42 -> 0 | G35: 0 | H35: 0 | I35: =$D35*(((E35*(1+'Sheet 2-Project Budget Summary'!$B$38/100))+(F35*(1+'Sheet 2-Project Budget Summary'!$B$40/100))+(H35*(1+'Sheet 2-Project Budget Summary'!$B$39/100)))*(1+'Sheet 2-Project Budget Summary'!$B$41/100)) -> 0 | K35: 591.3 | L35: =M35*'Sheet 2-Project Budget Summary'!$B$42 -> 30.66 | M35: 30.66 | N35: 0 | O35: =$D35*(((K35*(1+'Sheet 2-Project Budget Summary'!$B$38/100))+(L35*(1+'Sheet 2-Project Budget Summary'!$B$40/100))+(N35*(1+'Sheet 2-Project Budget Summary'!$B$39/100)))*(1+'Sheet 2-Project Budget Summary'!$B$41/100)) -> 765.72474
A36: (Lenel LNL-ETHLAN)
A38: Ethernet Cable | C38: Ea | D38: 1 | E38: 0 | F38: =G38*'Sheet 2-Project Budget Summary'!$B$42 -> 0 | G38: 0 | H38: 0 | I38: =$D38*(((E38*(1+'Sheet 2-Project Budget Summary'!$B$38/100))+(F38*(1+'Sheet 2-Project Budget Summary'!$B$40/100))+(H38*(1+'Sheet 2-Project Budget Summary'!$B$39/100)))*(1+'Sheet 2-Project Budget Summary'!$B$41/100)) -> 0 | K38: 58.4 | L38: =M38*'Sheet 2-Project Budget Summary'!$B$42 -> 10.22 | M38: 10.22 | N38: 0 | O38: =$D38*(((K38*(1+'Sheet 2-Project Budget Summary'!$B$38/100))+(L38*(1+'Sheet 2-Project Budget Summary'!$B$40/100))+(N38*(1+'Sheet 2-Project Budget Summary'!$B$39/100)))*(1+'Sheet 2-Project Budget Summary'!$B$41/100)) -> 87.41458
A39: (Generic)
A41: System Controller | C41: Ea | D41: 1 | E41: 0 | F41: =G41*'Sheet 2-Project Budget Summary'!$B$42 -> 0 | G41: 0 | H41: 0 | I41: =$D41*(((E41*(1+'Sheet 2-Project Budget Summary'!$B$38/100))+(F41*(1+'Sheet 2-Project Budget Summary'!$B$40/100))+(H41*(1+'Sheet 2-Project Budget Summary'!$B$39/100)))*(1+'Sheet 2-Project Budget Summary'!$B$41/100)) -> 0 | K41: 1185.885 | L41: =M41*'Sheet 2-Project Budget Summary'!$B$42 -> 490.56 | M41: 490.56 | N41: 0 | O41: =$D41*(((K41*(1+'Sheet 2-Project Budget Summary'!$B$38/100))+(L41*(1+'Sheet 2-Project Budget Summary'!$B$40/100))+(N41*(1+'Sheet 2-Project Budget Summary'!$B$39/100)))*(1+'Sheet 2-Project Budget Summary'!$B$41/100)) -> 2238.94869
A42: (Lenel LNL-1000)
A44: Single Card Reader Module | C44: Ea | D44: 1 | E44: 0 | F44: =G44*'Sheet 2-Project Budget Summary'!$B$42 -> 0 | G44: 0 | H44: 0 | I44: =$D44*(((E44*(1+'Sheet 2-Project Budget Summary'!$B$38/100))+(F44*(1+'Sheet 2-Project Budget Summary'!$B$40/100))+(H44*(1+'Sheet 2-Project Budget Summary'!$B$39/100)))*(1+'Sheet 2-Project Budget Summary'!$B$41/100)) -> 0 | K44: 355.875 | L44: =M44*'Sheet 2-Project Budget Summary'!$B$42 -> 122.64 | M44: 122.64 | N44: 0 | O44: =$D44*(((K44*(1+'Sheet 2-Project Budget Summary'!$B$38/100))+(L44*(1+'Sheet 2-Project Budget Summary'!$B$40/100))+(N44*(1+'Sheet 2-Project Budget Summary'!$B$39/100)))*(1+'Sheet 2-Project Budget Summary'!$B$41/100)) -> 631.61571
A45: (Lenel LNL-1300)
A47: Power Supply for Door Hardware | C47: Ea | D47: 1 | E47: 0 | F47: =G47*'Sheet 2-Project Budget Summary'!$B$42 -> 0 | G47: 0 | H47: 0 | I47: =$D47*(((E47*(1+'Sheet 2-Project Budget Summary'!$B$38/100))+(F47*(1+'Sheet 2-Project Budget Summary'!$B$40/100))+(H47*(1+'Sheet 2-Project Budget Summary'!$B$39/100)))*(1+'Sheet 2-Project Budget Summary'!$B$41/100)) -> 0 | K47: 167.827 | L47: =M47*'Sheet 2-Project Budget Summary'!$B$42 -> 122.64 | M47: 122.64 | N47: 0 | O47: =$D47*(((K47*(1+'Sheet 2-Project Budget Summary'!$B$38/100))+(L47*(1+'Sheet 2-Project Budget Summary'!$B$40/100))+(N47*(1+'Sheet 2-Project Budget Summary'!$B$39/100)))*(1+'Sheet 2-Project Budget Summary'!$B$41/100)) -> 404.07763
A48: (SDC SZ-602RF)
A50: ACS Workstation with Enrollment | C50: Ea | D50: 1 | E50: 0 | F50: =G50*'Sheet 2-Project Budget Summary'!$B$42 -> 0 | G50: 0 | H50: 0 | I50: =$D50*(((E50*(1+'Sheet 2-Project Budget Summary'!$B$38/100))+(F50*(1+'Sheet 2-Project Budget Summary'!$B$40/100))+(H50*(1+'Sheet 2-Project Budget Summary'!$B$39/100)))*(1+'Sheet 2-Project Budget Summary'!$B$41/100)) -> 0 | K50: 8280.39 | L50: =M50*'Sheet 2-Project Budget Summary'!$B$42 -> 981.12 | M50: 981.12 | N50: 0 | O50: =$D50*(((K50*(1+'Sheet 2-Project Budget Summary'!$B$38/100))+(L50*(1+'Sheet 2-Project Budget Summary'!$B$40/100))+(N50*(1+'Sheet 2-Project Budget Summary'!$B$39/100)))*(1+'Sheet 2-Project Budget Summary'!$B$41/100)) -> 11627.32758
A51: (Lenel PCC-32ESI, CAM500-KUSB, P210, SWC-32ESI)
A53: Wiring 18-2c (door contact, electric lock) | C53: Lf | D53: 300 | E53: 0 | F53: =G53*'Sheet 2-Project Budget Summary'!$B$42 -> 0 | G53: 0 | H53: 0 | I53: =$D53*(((E53*(1+'Sheet 2-Project Budget Summary'!$B$38/100))+(F53*(1+'Sheet 2-Project Budget Summary'!$B$40/100))+(H53*(1+'Sheet 2-Project Budget Summary'!$B$39/100)))*(1+'Sheet 2-Project Budget Summary'!$B$41/100)) -> 0 | K53: 0.1168 | L53: =M53*'Sheet 2-Project Budget Summary'!$B$42 -> 0.5475 | M53: 0.5475 | N53: 0 | O53: =$D53*(((K53*(1+'Sheet 2-Project Budget Summary'!$B$38/100))+(L53*(1+'Sheet 2-Project Budget Summary'!$B$40/100))+(N53*(1+'Sheet 2-Project Budget Summary'!$B$39/100)))*(1+'Sheet 2-Project Budget Summary'!$B$41/100)) -> 311.60415
A54: (CSC 151000)
A56: Wiring 18-4c (request-to-exits) | C56: Lf | D56: 300 | E56: 0 | F56: =G56*'Sheet 2-Project Budget Summary'!$B$42 -> 0 | G56: 0 | H56: 0 | I56: =$D56*(((E56*(1+'Sheet 2-Project Budget Summary'!$B$38/100))+(F56*(1+'Sheet 2-Project Budget Summary'!$B$40/100))+(H56*(1+'Sheet 2-Project Budget Summary'!$B$39/100)))*(1+'Sheet 2-Project Budget Summary'!$B$41/100)) -> 0 | K56: 0.23214 | L56: =M56*'Sheet 2-Project Budget Summary'!$B$42 -> 0.5475 | M56: 0.5475 | N56: 0 | O56: =$D56*(((K56*(1+'Sheet 2-Project Budget Summary'!$B$38/100))+(L56*(1+'Sheet 2-Project Budget Summary'!$B$40/100))+(N56*(1+'Sheet 2-Project Budget Summary'!$B$39/100)))*(1+'Sheet 2-Project Budget Summary'!$B$41/100)) -> 353.47257
A57: (CSC 151200)
A59: Wiring 18-6c (card reader) | C59: Lf | D59: 150 | E59: 0 | F59: =G59*'Sheet 2-Project Budget Summary'!$B$42 -> 0 | G59: 0 | H59: 0 | I59: =$D59*(((E59*(1+'Sheet 2-Project Budget Summary'!$B$38/100))+(F59*(1+'Sheet 2-Project Budget Summary'!$B$40/100))+(H59*(1+'Sheet 2-Project Budget Summary'!$B$39/100)))*(1+'Sheet 2-Project Budget Summary'!$B$41/100)) -> 0 | K59: 0.33288 | L59: =M59*'Sheet 2-Project Budget Summary'!$B$42 -> 0.5475 | M59: 0.5475 | N59: 0 | O59: =$D59*(((K59*(1+'Sheet 2-Project Budget Summary'!$B$38/100))+(L59*(1+'Sheet 2-Project Budget Summary'!$B$40/100))+(N59*(1+'Sheet 2-Project Budget Summary'!$B$39/100)))*(1+'Sheet 2-Project Budget Summary'!$B$41/100)) -> 195.020595
A60: (CSC 151230)
A62: 1/2" Rigid Galvanized Conduit | C62: Lf | D62: 150 | E62: 3.5624 | F62: =G62*'Sheet 2-Project Budget Summary'!$B$42 -> 5.4458 | G62: 5.4458 | H62: 0 | I62: =$D62*(((E62*(1+'Sheet 2-Project Budget Summary'!$B$38/100))+(F62*(1+'Sheet 2-Project Budget Summary'!$B$40/100))+(H62*(1+'Sheet 2-Project Budget Summary'!$B$39/100)))*(1+'Sheet 2-Project Budget Summary'!$B$41/100)) -> 1985.42553 | K62: 0 | L62: =M62*'Sheet 2-Project Budget Summary'!$B$42 -> 0 | M62: 0 | N62: 0 | O62: =$D62*(((K62*(1+'Sheet 2-Project Budget Summary'!$B$38/100))+(L62*(1+'Sheet 2-Project Budget Summary'!$B$40/100))+(N62*(1+'Sheet 2-Project Budget Summary'!$B$39/100)))*(1+'Sheet 2-Project Budget Summary'!$B$41/100)) -> 0
A63: (from door to panel, misc @ panel)
A65: 120 Volt Drop | C65: Ls | D65: 2 | E65: 558.304 | F65: =G65*'Sheet 2-Project Budget Summary'!$B$42 -> 917.245 | G65: 917.245 | H65: 0 | I65: =$D65*(((E65*(1+'Sheet 2-Project Budget Summary'!$B$38/100))+(F65*(1+'Sheet 2-Project Budget Summary'!$B$40/100))+(H65*(1+'Sheet 2-Project Budget Summary'!$B$39/100)))*(1+'Sheet 2-Project Budget Summary'!$B$41/100)) -> 4357.82479 | K65: 0 | L65: =M65*'Sheet 2-Project Budget Summary'!$B$42 -> 0 | M65: 0 | N65: 0 | O65: =$D65*(((K65*(1+'Sheet 2-Project Budget Summary'!$B$38/100))+(L65*(1+'Sheet 2-Project Budget Summary'!$B$40/100))+(N65*(1+'Sheet 2-Project Budget Summary'!$B$39/100)))*(1+'Sheet 2-Project Budget Summary'!$B$41/100)) -> 0
A66: (1for panel, 1 for workstation)
C68: Ea | D68: 0 | E68: 0 | F68: =G68*'Sheet 2-Project Budget Summary'!$B$42 -> 0 | G68: 0 | H68: 0 | I68: =$D68*(((E68*(1+'Sheet 2-Project Budget Summary'!$B$38/100))+(F68*(1+'Sheet 2-Project Budget Summary'!$B$40/100))+(H68*(1+'Sheet 2-Project Budget Summary'!$B$39/100)))*(1+'Sheet 2-Project Budget Summary'!$B$41/100)) -> 0 | K68: 0 | L68: =M68*'Sheet 2-Project Budget Summary'!$B$42 -> 0 | M68: 0 | N68: 0 | O68: =$D68*(((K68*(1+'Sheet 2-Project Budget Summary'!$B$38/100))+(L68*(1+'Sheet 2-Project Budget Summary'!$B$40/100))+(N68*(1+'Sheet 2-Project Budget Summary'!$B$39/100)))*(1+'Sheet 2-Project Budget Summary'!$B$41/100)) -> 0
C71: Ea | D71: 0 | E71: 0 | F71: =G71*'Sheet 2-Project Budget Summary'!$B$42 -> 0 | G71: 0 | H71: 0 | I71: =$D71*(((E71*(1+'Sheet 2-Project Budget Summary'!$B$38/100))+(F71*(1+'Sheet 2-Project Budget Summary'!$B$40/100))+(H71*(1+'Sheet 2-Project Budget Summary'!$B$39/100)))*(1+'Sheet 2-Project Budget Summary'!$B$41/100)) -> 0 | K71: 0 | L71: =M71*'Sheet 2-Project Budget Summary'!$B$42 -> 0 | M71: 0 | N71: 0 | O71: =$D71*(((K71*(1+'Sheet 2-Project Budget Summary'!$B$38/100))+(L71*(1+'Sheet 2-Project Budget Summary'!$B$40/100))+(N71*(1+'Sheet 2-Project Budget Summary'!$B$39/100)))*(1+'Sheet 2-Project Budget Summary'!$B$41/100)) -> 0
C74: Ea | D74: 0 | E74: 0 | F74: =G74*'Sheet 2-Project Budget Summary'!$B$42 -> 0 | G74: 0 | H74: 0 | I74: =$D74*(((E74*(1+'Sheet 2-Project Budget Summary'!$B$38/100))+(F74*(1+'Sheet 2-Project Budget Summary'!$B$40/100))+(H74*(1+'Sheet 2-Project Budget Summary'!$B$39/100)))*(1+'Sheet 2-Project Budget Summary'!$B$41/100)) -> 0 | K74: 0 | L74: =M74*'Sheet 2-Project Budget Summary'!$B$42 -> 0 | M74: 0 | N74: 0 | O74: =$D74*(((K74*(1+'Sheet 2-Project Budget Summary'!$B$38/100))+(L74*(1+'Sheet 2-Project Budget Summary'!$B$40/100))+(N74*(1+'Sheet 2-Project Budget Summary'!$B$39/100)))*(1+'Sheet 2-Project Budget Summary'!$B$41/100)) -> 0
A77: TOTALS | I77: =SUM(I11:I76) -> 6343.25032 | O77: =SUM(O11:O76) -> 21669.54665
A79: MEDIUM RISK | E79: Medium Risk
A80: Medium risk Secure Area includes all equipment included in Low risk Secure Area with the addition of one (1) interior motion detector and one (1) balanced magnetic switch for each of the emergency exit only doors. Medium risk Secure Area also provides a card reader with keypad instead of just a standard card reader. Cost includes input module required for motion detector as well as all additional wiring and conduit.
E83: Supporting Infrastructure | K83: PSE Equipment
A84: Description | C84: Unit | D84: Qty | E84: Materials | F84: Labor | G84: Labor | H84: Equipment | I84: Total1 | K84: Materials | L84: Labor | M84: Labor | N84: Equipment | O84: Total1
A86: Low Risk Carryover2 | C86: Ls | D86: 1 | E86: 0 | F86: =G86*'Sheet 2-Project Budget Summary'!$B$42 -> 0 | G86: 0 | H86: 0 | I86: =I77 -> 6343.25032 | K86: 0 | L86: =M86*'Sheet 2-Project Budget Summary'!$B$42 -> 0 | M86: 0 | N86: 0 | O86: =O77 -> 21669.54665
A89: Contactless Card Reader with Keypad | C89: Ea | D89: 1 | E89: 0 | F89: =G89*'Sheet 2-Project Budget Summary'!$B$42 -> 0 | G89: 0 | H89: 0 | I89: =$D89*(((E89*(1+'Sheet 2-Project Budget Summary'!$B$38/100))+(F89*(1+'Sheet 2-Project Budget Summary'!$B$40/100))+(H89*(1+'Sheet 2-Project Budget Summary'!$B$39/100)))*(1+'Sheet 2-Project Budget Summary'!$B$41/100)) -> 0 | K89: 5 | L89: =M89*'Sheet 2-Project Budget Summary'!$B$42 -> 0 | M89: 0 | N89: 0 | O89: =$D89*(((K89*(1+'Sheet 2-Project Budget Summary'!$B$38/100))+(L89*(1+'Sheet 2-Project Budget Summary'!$B$40/100))+(N89*(1+'Sheet 2-Project Budget Summary'!$B$39/100)))*(1+'Sheet 2-Project Budget Summary'!$B$41/100)) -> 6.05
A90: (HID Prox Pro - 5355)
A92: Interior 360-Degree Motion Detector - Dual Technology | C92: Ea | D92: 1 | E92: 0 | F92: =G92*'Sheet 2-Project Budget Summary'!$B$42 -> 0 | G92: 0 | H92: 0 | I92: =$D92*(((E92*(1+'Sheet 2-Project Budget Summary'!$B$38/100))+(F92*(1+'Sheet 2-Project Budget Summary'!$B$40/100))+(H92*(1+'Sheet 2-Project Budget Summary'!$B$39/100)))*(1+'Sheet 2-Project Budget Summary'!$B$41/100)) -> 0 | K92: 189.8 | L92: =M92*'Sheet 2-Project Budget Summary'!$B$42 -> 213.16 | M92: 213.16 | N92: 0 | O92: =$D92*(((K92*(1+'Sheet 2-Project Budget Summary'!$B$38/100))+(L92*(1+'Sheet 2-Project Budget Summary'!$B$40/100))+(N92*(1+'Sheet 2-Project Budget Summary'!$B$39/100)))*(1+'Sheet 2-Project Budget Summary'!$B$41/100)) -> 579.02724
A93: (Detection Systems DS-9370)
A95: Balanced Magnetic Switch | C95: Ea | D95: 2 | E95: 0 | F95: =G95*'Sheet 2-Project Budget Summary'!$B$42 -> 0 | G95: 0 | H95: 0 | I95: =$D95*(((E95*(1+'Sheet 2-Project Budget Summary'!$B$38/100))+(F95*(1+'Sheet 2-Project Budget Summary'!$B$40/100))+(H95*(1+'Sheet 2-Project Budget Summary'!$B$39/100)))*(1+'Sheet 2-Project Budget Summary'!$B$41/100)) -> 0 | K95: 21.827 | L95: =M95*'Sheet 2-Project Budget Summary'!$B$42 -> 92.5348 | M95: 92.5348 | N95: 0 | O95: =$D95*(((K95*(1+'Sheet 2-Project Budget Summary'!$B$38/100))+(L95*(1+'Sheet 2-Project Budget Summary'!$B$40/100))+(N95*(1+'Sheet 2-Project Budget Summary'!$B$39/100)))*(1+'Sheet 2-Project Budget Summary'!$B$41/100)) -> 356.1504144
A96: (GE 1076D)
A98: Input Module for Panel | C98: Ea | D98: 1 | E98: 0 | F98: =G98*'Sheet 2-Project Budget Summary'!$B$42 -> 0 | G98: 0 | H98: 0 | I98: =$D98*(((E98*(1+'Sheet 2-Project Budget Summary'!$B$38/100))+(F98*(1+'Sheet 2-Project Budget Summary'!$B$40/100))+(H98*(1+'Sheet 2-Project Budget Summary'!$B$39/100)))*(1+'Sheet 2-Project Budget Summary'!$B$41/100)) -> 0 | K98: 766.5 | L98: =M98*'Sheet 2-Project Budget Summary'!$B$42 -> 122.64 | M98: 122.64 | N98: 0 | O98: =$D98*(((K98*(1+'Sheet 2-Project Budget Summary'!$B$38/100))+(L98*(1+'Sheet 2-Project Budget Summary'!$B$40/100))+(N98*(1+'Sheet 2-Project Budget Summary'!$B$39/100)))*(1+'Sheet 2-Project Budget Summary'!$B$41/100)) -> 1128.47196
A99: (Lenel LNL-1100)
A101: Wiring 18-2c (balanced magnetic switches) | C101: Lf | D101: 300 | E101: 0 | F101: =G101*'Sheet 2-Project Budget Summary'!$B$42 -> 0 | G101: 0 | H101: 0 | I101: =$D101*(((E101*(1+'Sheet 2-Project Budget Summary'!$B$38/100))+(F101*(1+'Sheet 2-Project Budget Summary'!$B$40/100))+(H101*(1+'Sheet 2-Project Budget Summary'!$B$39/100)))*(1+'Sheet 2-Project Budget Summary'!$B$41/100)) -> 0 | K101: 0.11972 | L101: =M101*'Sheet 2-Project Budget Summary'!$B$42 -> 0.5548 | M101: 0.5548 | N101: 0 | O101: =$D101*(((K101*(1+'Sheet 2-Project Budget Summary'!$B$38/100))+(L101*(1+'Sheet 2-Project Budget Summary'!$B$40/100))+(N101*(1+'Sheet 2-Project Budget Summary'!$B$39/100)))*(1+'Sheet 2-Project Budget Summary'!$B$41/100)) -> 316.25352
A102: (CSC 151000)
A104: Wiring 18-4c (motion detector) | C104: Lf | D104: 150 | E104: 0 | F104: =G104*'Sheet 2-Project Budget Summary'!$B$42 -> 0 | G104: 0 | H104: 0 | I104: =$D104*(((E104*(1+'Sheet 2-Project Budget Summary'!$B$38/100))+(F104*(1+'Sheet 2-Project Budget Summary'!$B$40/100))+(H104*(1+'Sheet 2-Project Budget Summary'!$B$39/100)))*(1+'Sheet 2-Project Budget Summary'!$B$41/100)) -> 0 | K104: 0.2336 | L104: =M104*'Sheet 2-Project Budget Summary'!$B$42 -> 0.5548 | M104: 0.5548 | N104: 0 | O104: =$D104*(((K104*(1+'Sheet 2-Project Budget Summary'!$B$38/100))+(L104*(1+'Sheet 2-Project Budget Summary'!$B$40/100))+(N104*(1+'Sheet 2-Project Budget Summary'!$B$39/100)))*(1+'Sheet 2-Project Budget Summary'!$B$41/100)) -> 178.79598
A105: (CSC 151200)
A107: 1/2" Rigid Galvanized Conduit | C107: Lf | D107: 450 | E107: 3.5624 | F107: =G107*'Sheet 2-Project Budget Summary'!$B$42 -> 5.4458 | G107: 5.4458 | H107: 0 | I107: =$D107*(((E107*(1+'Sheet 2-Project Budget Summary'!$B$38/100))+(F107*(1+'Sheet 2-Project Budget Summary'!$B$40/100))+(H107*(1+'Sheet 2-Project Budget Summary'!$B$39/100)))*(1+'Sheet 2-Project Budget Summary'!$B$41/100)) -> 5956.27659 | K107: 0 | L107: =M107*'Sheet 2-Project Budget Summary'!$B$42 -> 0 | M107: 0 | N107: 0 | O107: =$D107*(((K107*(1+'Sheet 2-Project Budget Summary'!$B$38/100))+(L107*(1+'Sheet 2-Project Budget Summary'!$B$40/100))+(N107*(1+'Sheet 2-Project Budget Summary'!$B$39/100)))*(1+'Sheet 2-Project Budget Summary'!$B$41/100)) -> 0
A108: (to motion and BMS's)
C110: Ea | D110: 0 | E110: 0 | F110: =G110*'Sheet 2-Project Budget Summary'!$B$42 -> 0 | G110: 0 | H110: 0 | I110: =$D110*(((E110*(1+'Sheet 2-Project Budget Summary'!$B$38/100))+(F110*(1+'Sheet 2-Project Budget Summary'!$B$40/100))+(H110*(1+'Sheet 2-Project Budget Summary'!$B$39/100)))*(1+'Sheet 2-Project Budget Summary'!$B$41/100)) -> 0 | K110: 7.3 | L110: =M110*'Sheet 2-Project Budget Summary'!$B$42 -> 3.65 | M110: 3.65 | N110: 0 | O110: =$D110*(((K110*(1+'Sheet 2-Project Budget Summary'!$B$38/100))+(L110*(1+'Sheet 2-Project Budget Summary'!$B$40/100))+(N110*(1+'Sheet 2-Project Budget Summary'!$B$39/100)))*(1+'Sheet 2-Project Budget Summary'!$B$41/100)) -> 0
C113: 0 | D113: 0 | E113: 0 | F113: =G113*'Sheet 2-Project Budget Summary'!$B$42 -> 0 | G113: 0 | H113: 0 | I113: =$D113*(((E113*(1+'Sheet 2-Project Budget Summary'!$B$38/100))+(F113*(1+'Sheet 2-Project Budget Summary'!$B$40/100))+(H113*(1+'Sheet 2-Project Budget Summary'!$B$39/100)))*(1+'Sheet 2-Project Budget Summary'!$B$41/100)) -> 0 | K113: 0 | L113: =M113*'Sheet 2-Project Budget Summary'!$B$42 -> 0 | M113: 0 | N113: 0 | O113: =$D113*(((K113*(1+'Sheet 2-Project Budget Summary'!$B$38/100))+(L113*(1+'Sheet 2-Project Budget Summary'!$B$40/100))+(N113*(1+'Sheet 2-Project Budget Summary'!$B$39/100)))*(1+'Sheet 2-Project Budget Summary'!$B$41/100)) -> 0
A116: TOTALS | I116: =SUM(I86:I115) -> 12299.52691 | O116: =SUM(O86:O115) -> 24234.29576
A118: HIGH RISK | E118: High Risk
A119: High risk Secure Area includes all equipment included in Low and Medium risk Secure Area with the addition of one (1) interior motion detector, one (1) UL 634 L2 high security switch on the door into the telco closet, and two (2) interior fixed cameras. In addition, cost includes standalone workstation for administration of video systems and the necessary video system recorder, power supply, and equipment rack. Cost includes all wiring, conduit, and 120 VAC drops required to support equipment.
E123: Supporting Infrastructure | K123: ESS Equipment
A124: Description | C124: Unit | D124: Qty | E124: Materials | F124: Labor | G124: Labor | H124: Equipment | I124: Total1 | K124: Materials | L124: Labor | M124: Labor | N124: Equipment | O124: Total1
A126: Medium Risk Carryover3 | C126: Ea | D126: 1 | E126: 0 | F126: =G126*'Sheet 2-Project Budget Summary'!$B$42 -> 0 | G126: 0 | H126: 0 | I126: =I116 -> 12299.52691 | K126: 0 | L126: =M126*'Sheet 2-Project Budget Summary'!$B$42 -> 0 | M126: 0 | N126: 0 | O126: =O116 -> 24234.29576
A129: UL 634 L2 High Security Switch | C129: Ea | D129: 1 | E129: 0 | F129: =G129*'Sheet 2-Project Budget Summary'!$B$42 -> 0 | G129: 0 | H129: 0 | I129: =$D129*(((E129*(1+'Sheet 2-Project Budget Summary'!$B$38/100))+(F129*(1+'Sheet 2-Project Budget Summary'!$B$40/100))+(H129*(1+'Sheet 2-Project Budget Summary'!$B$39/100)))*(1+'Sheet 2-Project Budget Summary'!$B$41/100)) -> 0 | K129: 200 | L129: =M129*'Sheet 2-Project Budget Summary'!$B$42 -> 92.5348 | M129: 92.5348 | N129: 0 | O129: =$D129*(((K129*(1+'Sheet 2-Project Budget Summary'!$B$38/100))+(L129*(1+'Sheet 2-Project Budget Summary'!$B$40/100))+(N129*(1+'Sheet 2-Project Budget Summary'!$B$39/100)))*(1+'Sheet 2-Project Budget Summary'!$B$41/100)) -> 393.6645372
A130: (GE 1076D)
A132: Interior 360-Degree Motion Detector - Dual Technology | C132: Ea | D132: 1 | E132: 0 | F132: =G132*'Sheet 2-Project Budget Summary'!$B$42 -> 0 | G132: 0 | H132: 0 | I132: =$D132*(((E132*(1+'Sheet 2-Project Budget Summary'!$B$38/100))+(F132*(1+'Sheet 2-Project Budget Summary'!$B$40/100))+(H132*(1+'Sheet 2-Project Budget Summary'!$B$39/100)))*(1+'Sheet 2-Project Budget Summary'!$B$41/100)) -> 0 | K132: 189.8 | L132: =M132*'Sheet 2-Project Budget Summary'!$B$42 -> 213.16 | M132: 213.16 | N132: 0 | O132: =$D132*(((K132*(1+'Sheet 2-Project Budget Summary'!$B$38/100))+(L132*(1+'Sheet 2-Project Budget Summary'!$B$40/100))+(N132*(1+'Sheet 2-Project Budget Summary'!$B$39/100)))*(1+'Sheet 2-Project Budget Summary'!$B$41/100)) -> 579.02724
A133: (Detection Systems DS-9370)
A135: Interior Fixed Camera | C135: Ea | D135: 2 | E135: 0 | F135: =G135*'Sheet 2-Project Budget Summary'!$B$42 -> 0 | G135: 0 | H135: 0 | I135: =$D135*(((E135*(1+'Sheet 2-Project Budget Summary'!$B$38/100))+(F135*(1+'Sheet 2-Project Budget Summary'!$B$40/100))+(H135*(1+'Sheet 2-Project Budget Summary'!$B$39/100)))*(1+'Sheet 2-Project Budget Summary'!$B$41/100)) -> 0 | K135: 715.4 | L135: =M135*'Sheet 2-Project Budget Summary'!$B$42 -> 181.697 | M135: 181.697 | N135: 0 | O135: =$D135*(((K135*(1+'Sheet 2-Project Budget Summary'!$B$38/100))+(L135*(1+'Sheet 2-Project Budget Summary'!$B$40/100))+(N135*(1+'Sheet 2-Project Budget Summary'!$B$39/100)))*(1+'Sheet 2-Project Budget Summary'!$B$41/100)) -> 2326.870766
A136: (Pelco ICS150-CDV4A-incl lens, mount, encl.)
A138: Digital Video Recorder (600GbHD) | C138: Ea | D138: 1 | E138: 0 | F138: =G138*'Sheet 2-Project Budget Summary'!$B$42 -> 0 | G138: 0 | H138: 0 | I138: =$D138*(((E138*(1+'Sheet 2-Project Budget Summary'!$B$38/100))+(F138*(1+'Sheet 2-Project Budget Summary'!$B$40/100))+(H138*(1+'Sheet 2-Project Budget Summary'!$B$39/100)))*(1+'Sheet 2-Project Budget Summary'!$B$41/100)) -> 0 | K138: 11040.885 | L138: =M138*'Sheet 2-Project Budget Summary'!$B$42 -> 490.56 | M138: 490.56 | N138: 0 | O138: =$D138*(((K138*(1+'Sheet 2-Project Budget Summary'!$B$38/100))+(L138*(1+'Sheet 2-Project Budget Summary'!$B$40/100))+(N138*(1+'Sheet 2-Project Budget Summary'!$B$39/100)))*(1+'Sheet 2-Project Budget Summary'!$B$41/100)) -> 14163.49869
A139: (Lenel DVS-16-S)
A141: Matrix Switcher | C141: Ea | D141: 1 | E141: 0 | F141: =G141*'Sheet 2-Project Budget Summary'!$B$42 -> 0 | G141: 0 | H141: 0 | I141: =$D141*(((E141*(1+'Sheet 2-Project Budget Summary'!$B$38/100))+(F141*(1+'Sheet 2-Project Budget Summary'!$B$40/100))+(H141*(1+'Sheet 2-Project Budget Summary'!$B$39/100)))*(1+'Sheet 2-Project Budget Summary'!$B$41/100)) -> 0 | K141: 2084.88 | L141: =M141*'Sheet 2-Project Budget Summary'!$B$42 -> 490.56 | M141: 490.56 | N141: 0 | O141: =$D141*(((K141*(1+'Sheet 2-Project Budget Summary'!$B$38/100))+(L141*(1+'Sheet 2-Project Budget Summary'!$B$40/100))+(N141*(1+'Sheet 2-Project Budget Summary'!$B$39/100)))*(1+'Sheet 2-Project Budget Summary'!$B$41/100)) -> 3326.73264
A142: (Pelco CM6700-MXB4, CM9760-CDU-T, PV130)
A144: Keyboard Controller | C144: Ea | D144: 1 | E144: 0 | F144: =G144*'Sheet 2-Project Budget Summary'!$B$42 -> 0 | G144: 0 | H144: 0 | I144: =$D144*(((E144*(1+'Sheet 2-Project Budget Summary'!$B$38/100))+(F144*(1+'Sheet 2-Project Budget Summary'!$B$40/100))+(H144*(1+'Sheet 2-Project Budget Summary'!$B$39/100)))*(1+'Sheet 2-Project Budget Summary'!$B$41/100)) -> 0 | K144: 851.18 | L144: =M144*'Sheet 2-Project Budget Summary'!$B$42 -> 122.64 | M144: 122.64 | N144: 0 | O144: =$D144*(((K144*(1+'Sheet 2-Project Budget Summary'!$B$38/100))+(L144*(1+'Sheet 2-Project Budget Summary'!$B$40/100))+(N144*(1+'Sheet 2-Project Budget Summary'!$B$39/100)))*(1+'Sheet 2-Project Budget Summary'!$B$41/100)) -> 1230.93476
A145: (Pelco KBD300A)
A147: Camera Power Supply and Enclosure | C147: Ea | D147: 1 | E147: 0 | F147: =G147*'Sheet 2-Project Budget Summary'!$B$42 -> 0 | G147: 0 | H147: 0 | I147: =$D147*(((E147*(1+'Sheet 2-Project Budget Summary'!$B$38/100))+(F147*(1+'Sheet 2-Project Budget Summary'!$B$40/100))+(H147*(1+'Sheet 2-Project Budget Summary'!$B$39/100)))*(1+'Sheet 2-Project Budget Summary'!$B$41/100)) -> 0 | K147: 91.98 | L147: =M147*'Sheet 2-Project Budget Summary'!$B$42 -> 61.32 | M147: 61.32 | N147: 0 | O147: =$D147*(((K147*(1+'Sheet 2-Project Budget Summary'!$B$38/100))+(L147*(1+'Sheet 2-Project Budget Summary'!$B$40/100))+(N147*(1+'Sheet 2-Project Budget Summary'!$B$39/100)))*(1+'Sheet 2-Project Budget Summary'!$B$41/100)) -> 211.79928
A148: (Pelco MCS4-2)
A150: 17" Flat Screen LCD Monitor | C150: Ea | D150: 1 | E150: 0 | F150: =G150*'Sheet 2-Project Budget Summary'!$B$42 -> 0 | G150: 0 | H150: 0 | I150: =$D150*(((E150*(1+'Sheet 2-Project Budget Summary'!$B$38/100))+(F150*(1+'Sheet 2-Project Budget Summary'!$B$40/100))+(H150*(1+'Sheet 2-Project Budget Summary'!$B$39/100)))*(1+'Sheet 2-Project Budget Summary'!$B$41/100)) -> 0 | K150: 1852.667 | L150: =M150*'Sheet 2-Project Budget Summary'!$B$42 -> 15.33 | M150: 15.33 | N150: 0 | O150: =$D150*(((K150*(1+'Sheet 2-Project Budget Summary'!$B$38/100))+(L150*(1+'Sheet 2-Project Budget Summary'!$B$40/100))+(N150*(1+'Sheet 2-Project Budget Summary'!$B$39/100)))*(1+'Sheet 2-Project Budget Summary'!$B$41/100)) -> 2266.85294
A151: (Bosch MON171CL)
A153: Uninterruptible Power Supply | C153: Ea | D153: 1 | E153: 0 | F153: =G153*'Sheet 2-Project Budget Summary'!$B$42 -> 0 | G153: 0 | H153: 0 | I153: =$D153*(((E153*(1+'Sheet 2-Project Budget Summary'!$B$38/100))+(F153*(1+'Sheet 2-Project Budget Summary'!$B$40/100))+(H153*(1+'Sheet 2-Project Budget Summary'!$B$39/100)))*(1+'Sheet 2-Project Budget Summary'!$B$41/100)) -> 0 | K153: 1750.905 | L153: =M153*'Sheet 2-Project Budget Summary'!$B$42 -> 61.32 | M153: 61.32 | N153: 0 | O153: =$D153*(((K153*(1+'Sheet 2-Project Budget Summary'!$B$38/100))+(L153*(1+'Sheet 2-Project Budget Summary'!$B$40/100))+(N153*(1+'Sheet 2-Project Budget Summary'!$B$39/100)))*(1+'Sheet 2-Project Budget Summary'!$B$41/100)) -> 2219.09853
A154: (Powerware 9125 2000)
A156: Equipment Rack | C156: Ea | D156: 1 | E156: 0 | F156: =G156*'Sheet 2-Project Budget Summary'!$B$42 -> 0 | G156: 0 | H156: 0 | I156: =$D156*(((E156*(1+'Sheet 2-Project Budget Summary'!$B$38/100))+(F156*(1+'Sheet 2-Project Budget Summary'!$B$40/100))+(H156*(1+'Sheet 2-Project Budget Summary'!$B$39/100)))*(1+'Sheet 2-Project Budget Summary'!$B$41/100)) -> 0 | K156: 3650 | L156: =M156*'Sheet 2-Project Budget Summary'!$B$42 -> 490.56 | M156: 490.56 | N156: 0 | O156: =$D156*(((K156*(1+'Sheet 2-Project Budget Summary'!$B$38/100))+(L156*(1+'Sheet 2-Project Budget Summary'!$B$40/100))+(N156*(1+'Sheet 2-Project Budget Summary'!$B$39/100)))*(1+'Sheet 2-Project Budget Summary'!$B$41/100)) -> 5220.52784
A157: (Middle Atlantic VRK-44-31H, MW-LVT, PVFD-44, etc)
A159: Wiring 18-4c (motion detector) | C159: Lf | D159: 150 | E159: 0 | F159: =G159*'Sheet 2-Project Budget Summary'!$B$42 -> 0 | G159: 0 | H159: 0 | I159: =$D159*(((E159*(1+'Sheet 2-Project Budget Summary'!$B$38/100))+(F159*(1+'Sheet 2-Project Budget Summary'!$B$40/100))+(H159*(1+'Sheet 2-Project Budget Summary'!$B$39/100)))*(1+'Sheet 2-Project Budget Summary'!$B$41/100)) -> 0 | K159: 0.23214 | L159: =M159*'Sheet 2-Project Budget Summary'!$B$42 -> 0.5475 | M159: 0.5475 | N159: 0 | O159: =$D159*(((K159*(1+'Sheet 2-Project Budget Summary'!$B$38/100))+(L159*(1+'Sheet 2-Project Budget Summary'!$B$40/100))+(N159*(1+'Sheet 2-Project Budget Summary'!$B$39/100)))*(1+'Sheet 2-Project Budget Summary'!$B$41/100)) -> 176.736285
A160: (CSC 151200)
A162: Coaxial/Power Cable RG-59U with 18/2c (cameras) | C162: Lf | D162: 300 | E162: 0 | F162: =G162*'Sheet 2-Project Budget Summary'!$B$42 -> 0 | G162: 0 | H162: 0 | I162: =$D162*(((E162*(1+'Sheet 2-Project Budget Summary'!$B$38/100))+(F162*(1+'Sheet 2-Project Budget Summary'!$B$40/100))+(H162*(1+'Sheet 2-Project Budget Summary'!$B$39/100)))*(1+'Sheet 2-Project Budget Summary'!$B$41/100)) -> 0 | K162: 0.89352 | L162: =M162*'Sheet 2-Project Budget Summary'!$B$42 -> 0.5548 | M162: 0.5548 | N162: 0 | O162: =$D162*(((K162*(1+'Sheet 2-Project Budget Summary'!$B$38/100))+(L162*(1+'Sheet 2-Project Budget Summary'!$B$40/100))+(N162*(1+'Sheet 2-Project Budget Summary'!$B$39/100)))*(1+'Sheet 2-Project Budget Summary'!$B$41/100)) -> 597.14292
A163: (CSC 516681)
A165: 1/2" Rigid Galvanized Conduit | C165: Lf | D165: 450 | E165: 3.5624 | F165: =G165*'Sheet 2-Project Budget Summary'!$B$42 -> 5.4458 | G165: 5.4458 | H165: 0 | I165: =$D165*(((E165*(1+'Sheet 2-Project Budget Summary'!$B$38/100))+(F165*(1+'Sheet 2-Project Budget Summary'!$B$40/100))+(H165*(1+'Sheet 2-Project Budget Summary'!$B$39/100)))*(1+'Sheet 2-Project Budget Summary'!$B$41/100)) -> 5956.27659 | K165: 0 | L165: =M165*'Sheet 2-Project Budget Summary'!$B$42 -> 0 | M165: 0 | N165: 0 | O165: =$D165*(((K165*(1+'Sheet 2-Project Budget Summary'!$B$38/100))+(L165*(1+'Sheet 2-Project Budget Summary'!$B$40/100))+(N165*(1+'Sheet 2-Project Budget Summary'!$B$39/100)))*(1+'Sheet 2-Project Budget Summary'!$B$41/100)) -> 0
A166: (to motion, cameras to DVR)
A168: 120 Volt Drop | C168: Ls | D168: 3 | E168: 558.304 | F168: =G168*'Sheet 2-Project Budget Summary'!$B$42 -> 917.245 | G168: 917.245 | H168: 0 | I168: =$D168*(((E168*(1+'Sheet 2-Project Budget Summary'!$B$38/100))+(F168*(1+'Sheet 2-Project Budget Summary'!$B$40/100))+(H168*(1+'Sheet 2-Project Budget Summary'!$B$39/100)))*(1+'Sheet 2-Project Budget Summary'!$B$41/100)) -> 6536.737185 | K168: 0 | L168: =M168*'Sheet 2-Project Budget Summary'!$B$42 -> 0 | M168: 0 | N168: 0 | O168: =$D168*(((K168*(1+'Sheet 2-Project Budget Summary'!$B$38/100))+(L168*(1+'Sheet 2-Project Budget Summary'!$B$40/100))+(N168*(1+'Sheet 2-Project Budget Summary'!$B$39/100)))*(1+'Sheet 2-Project Budget Summary'!$B$41/100)) -> 0
A169: (Video system panel, workstation, DVR/UPS)
D171: 0 | E171: 0 | F171: =G171*'Sheet 2-Project Budget Summary'!$B$42 -> 0 | G171: 0 | H171: 0 | I171: =$D171*(((E171*(1+'Sheet 2-Project Budget Summary'!$B$38/100))+(F171*(1+'Sheet 2-Project Budget Summary'!$B$40/100))+(H171*(1+'Sheet 2-Project Budget Summary'!$B$39/100)))*(1+'Sheet 2-Project Budget Summary'!$B$41/100)) -> 0 | K171: 0 | L171: =M171*'Sheet 2-Project Budget Summary'!$B$42 -> 0 | M171: 0 | N171: 0 | O171: =$D171*(((K171*(1+'Sheet 2-Project Budget Summary'!$B$38/100))+(L171*(1+'Sheet 2-Project Budget Summary'!$B$40/100))+(N171*(1+'Sheet 2-Project Budget Summary'!$B$39/100)))*(1+'Sheet 2-Project Budget Summary'!$B$41/100)) -> 0
I174: =$D174*(((E174*(1+'Sheet 2-Project Budget Summary'!$B$38/100))+(F174*(1+'Sheet 2-Project Budget Summary'!$B$40/100))+(H174*(1+'Sheet 2-Project Budget Summary'!$B$39/100)))*(1+'Sheet 2-Project Budget Summary'!$B$41/100)) -> 0 | O174: =$D174*(((K174*(1+'Sheet 2-Project Budget Summary'!$B$38/100))+(L174*(1+'Sheet 2-Project Budget Summary'!$B$40/100))+(N174*(1+'Sheet 2-Project Budget Summary'!$B$39/100)))*(1+'Sheet 2-Project Budget Summary'!$B$41/100)) -> 0
A177: TOTALS | I177: =SUM(I126:I176) -> 24792.54069 | O177: =SUM(O126:O176) -> 56947.18219
A179: SENSITIVE COMPARTMENTED INFORMATION FACILITY
A180: An accredited area, room, group of rooms, or building where sensitive compartmented information may be stored, used, discussed, or electronically processed. Entry into a SCIF is limited to one (1) entrance which, like a Secure Area, is controlled via an electronic card reader.
A182: No Risk Category - All SCIF's Considered the Same Risk
A183: SCIF includes one (1) entry point that is protected by a card reader with keypad and associated access control hardware (balanced magnetic switch, request to exit motion sensor and button, magnetic lock). Cost assumes one (1) exterior emergency exit door and two interior doors segregating SCI areas all protected by UL 634, L2 High Security Switches (HSS). Cost includes four (4) interior motion detectors, two (3) fixed interior cameras, a standalone workstation for administration of access control system, and all necessary access control system controllers, modules, and enclosures. Cost includes standalone workstation for administration of video systems and the necessary video system recorder, power supply, and equipment rack. Cost includes all wiring, conduit, and 120 VAC drops required to support equipment.
E189: Supporting Infrastructure | K189: ESS Equipment
A190: Description | C190: Unit | D190: Qty | E190: Materials | F190: Labor | G190: Labor | H190: Equipment | I190: Total1 | K190: Materials | L190: Labor | M190: Labor | N190: Equipment | O190: Total1
A192: Contactless Card Reader with Keypad | C192: Ea | D192: 1 | E192: 0 | F192: =G192*'Sheet 2-Project Budget Summary'!$B$42 -> 0 | G192: 0 | H192: 0 | I192: =$D192*(((E192*(1+'Sheet 2-Project Budget Summary'!$B$38/100))+(F192*(1+'Sheet 2-Project Budget Summary'!$B$40/100))+(H192*(1+'Sheet 2-Project Budget Summary'!$B$39/100)))*(1+'Sheet 2-Project Budget Summary'!$B$41/100)) -> 0 | K192: 700.8 | L192: =M192*'Sheet 2-Project Budget Summary'!$B$42 -> 181.697 | M192: 181.697 | N192: 0 | O192: =$D192*(((K192*(1+'Sheet 2-Project Budget Summary'!$B$38/100))+(L192*(1+'Sheet 2-Project Budget Summary'!$B$40/100))+(N192*(1+'Sheet 2-Project Budget Summary'!$B$39/100)))*(1+'Sheet 2-Project Budget Summary'!$B$41/100)) -> 1145.769383
A193: (HID Prox Pro - 5355)
F194: . | L194: . | M194: .
A195: Proximity Cards | C195: Ea | D195: 25 | E195: 0 | F195: =G195*'Sheet 2-Project Budget Summary'!$B$42 -> 0 | G195: 0 | H195: 0 | I195: =$D195*(((E195*(1+'Sheet 2-Project Budget Summary'!$B$38/100))+(F195*(1+'Sheet 2-Project Budget Summary'!$B$40/100))+(H195*(1+'Sheet 2-Project Budget Summary'!$B$39/100)))*(1+'Sheet 2-Project Budget Summary'!$B$41/100)) -> 0 | K195: 7.811 | L195: =M195*'Sheet 2-Project Budget Summary'!$B$42 -> 0 | M195: 0 | N195: 0 | O195: =$D195*(((K195*(1+'Sheet 2-Project Budget Summary'!$B$38/100))+(L195*(1+'Sheet 2-Project Budget Summary'!$B$40/100))+(N195*(1+'Sheet 2-Project Budget Summary'!$B$39/100)))*(1+'Sheet 2-Project Budget Summary'!$B$41/100)) -> 236.28275
A196: (HID ISOProx II-1386LGGSN or HID iClass 2002PGGMN)
A198: UL 634 L2 High Security Switch | C198: Ea | D198: 5 | E198: 0 | F198: =G198*'Sheet 2-Project Budget Summary'!$B$42 -> 0 | G198: 0 | H198: 0 | I198: =$D198*(((E198*(1+'Sheet 2-Project Budget Summary'!$B$38/100))+(F198*(1+'Sheet 2-Project Budget Summary'!$B$40/100))+(H198*(1+'Sheet 2-Project Budget Summary'!$B$39/100)))*(1+'Sheet 2-Project Budget Summary'!$B$41/100)) -> 0 | K198: 200 | L198: =M198*'Sheet 2-Project Budget Summary'!$B$42 -> 92.5348 | M198: 92.5348 | N198: 0 | O198: =$D198*(((K198*(1+'Sheet 2-Project Budget Summary'!$B$38/100))+(L198*(1+'Sheet 2-Project Budget Summary'!$B$40/100))+(N198*(1+'Sheet 2-Project Budget Summary'!$B$39/100)))*(1+'Sheet 2-Project Budget Summary'!$B$41/100)) -> 1968.322686
A199: (GE 1076D)
A201: Request-to-Exit | C201: Ea | D201: 1 | E201: 0 | F201: =G201*'Sheet 2-Project Budget Summary'!$B$42 -> 0 | G201: 0 | H201: 0 | I201: =$D201*(((E201*(1+'Sheet 2-Project Budget Summary'!$B$38/100))+(F201*(1+'Sheet 2-Project Budget Summary'!$B$40/100))+(H201*(1+'Sheet 2-Project Budget Summary'!$B$39/100)))*(1+'Sheet 2-Project Budget Summary'!$B$41/100)) -> 0 | K201: 94.827 | L201: =M201*'Sheet 2-Project Budget Summary'!$B$42 -> 213.2768 | M201: 213.2768 | N201: 0 | O201: =$D201*(((K201*(1+'Sheet 2-Project Budget Summary'!$B$38/100))+(L201*(1+'Sheet 2-Project Budget Summary'!$B$40/100))+(N201*(1+'Sheet 2-Project Budget Summary'!$B$39/100)))*(1+'Sheet 2-Project Budget Summary'!$B$41/100)) -> 464.3013452
A202: (Detection Systems 150i)
A204: Request-to-Exit Button | C204: Ea | D204: 1 | E204: 0 | F204: =G204*'Sheet 2-Project Budget Summary'!$B$42 -> 0 | G204: 0 | H204: 0 | I204: =$D204*(((E204*(1+'Sheet 2-Project Budget Summary'!$B$38/100))+(F204*(1+'Sheet 2-Project Budget Summary'!$B$40/100))+(H204*(1+'Sheet 2-Project Budget Summary'!$B$39/100)))*(1+'Sheet 2-Project Budget Summary'!$B$41/100)) -> 0 | K204: 99.207 | L204: =M204*'Sheet 2-Project Budget Summary'!$B$42 -> 61.32 | M204: 61.32 | N204: 0 | O204: =$D204*(((K204*(1+'Sheet 2-Project Budget Summary'!$B$38/100))+(L204*(1+'Sheet 2-Project Budget Summary'!$B$40/100))+(N204*(1+'Sheet 2-Project Budget Summary'!$B$39/100)))*(1+'Sheet 2-Project Budget Summary'!$B$41/100)) -> 220.54395
A205: (Securitron SN-PB5)
A207: Magnetic Lock | C207: Ea | D207: 1 | E207: 0 | F207: =G207*'Sheet 2-Project Budget Summary'!$B$42 -> 0 | G207: 0 | H207: 0 | I207: =$D207*(((E207*(1+'Sheet 2-Project Budget Summary'!$B$38/100))+(F207*(1+'Sheet 2-Project Budget Summary'!$B$40/100))+(H207*(1+'Sheet 2-Project Budget Summary'!$B$39/100)))*(1+'Sheet 2-Project Budget Summary'!$B$41/100)) -> 0 | K207: 383.907 | L207: =M207*'Sheet 2-Project Budget Summary'!$B$42 -> 245.28 | M207: 245.28 | N207: 0 | O207: =$D207*(((K207*(1+'Sheet 2-Project Budget Summary'!$B$38/100))+(L207*(1+'Sheet 2-Project Budget Summary'!$B$40/100))+(N207*(1+'Sheet 2-Project Budget Summary'!$B$39/100)))*(1+'Sheet 2-Project Budget Summary'!$B$41/100)) -> 866.54139
A208: (Locknetics 390 Plus)
A210: Panel and Power Supply | C210: Ea | D210: 1 | E210: 0 | F210: =G210*'Sheet 2-Project Budget Summary'!$B$42 -> 0 | G210: 0 | H210: 0 | I210: =$D210*(((E210*(1+'Sheet 2-Project Budget Summary'!$B$38/100))+(F210*(1+'Sheet 2-Project Budget Summary'!$B$40/100))+(H210*(1+'Sheet 2-Project Budget Summary'!$B$39/100)))*(1+'Sheet 2-Project Budget Summary'!$B$41/100)) -> 0 | K210: 366.825 | L210: =M210*'Sheet 2-Project Budget Summary'!$B$42 -> 122.64 | M210: 122.64 | N210: 0 | O210: =$D210*(((K210*(1+'Sheet 2-Project Budget Summary'!$B$38/100))+(L210*(1+'Sheet 2-Project Budget Summary'!$B$40/100))+(N210*(1+'Sheet 2-Project Budget Summary'!$B$39/100)))*(1+'Sheet 2-Project Budget Summary'!$B$41/100)) -> 644.86521
A211: (Lenel LNL-OLS75CTX)
A213: Battery Back-Up for ACS Panel | C213: Ea | D213: 1 | E213: 0 | F213: =G213*'Sheet 2-Project Budget Summary'!$B$42 -> 0 | G213: 0 | H213: 0 | I213: =$D213*(((E213*(1+'Sheet 2-Project Budget Summary'!$B$38/100))+(F213*(1+'Sheet 2-Project Budget Summary'!$B$40/100))+(H213*(1+'Sheet 2-Project Budget Summary'!$B$39/100)))*(1+'Sheet 2-Project Budget Summary'!$B$41/100)) -> 0 | K213: 75.555 | L213: =M213*'Sheet 2-Project Budget Summary'!$B$42 -> 15.33 | M213: 15.33 | N213: 0 | O213: =$D213*(((K213*(1+'Sheet 2-Project Budget Summary'!$B$38/100))+(L213*(1+'Sheet 2-Project Budget Summary'!$B$40/100))+(N213*(1+'Sheet 2-Project Budget Summary'!$B$39/100)))*(1+'Sheet 2-Project Budget Summary'!$B$41/100)) -> 116.54742
A214: (Lenel ABT-12)
A216: Ethernet Module to Connect to LAN | C216: Ea | D216: 1 | E216: 0 | F216: =G216*'Sheet 2-Project Budget Summary'!$B$42 -> 0 | G216: 0 | H216: 0 | I216: =$D216*(((E216*(1+'Sheet 2-Project Budget Summary'!$B$38/100))+(F216*(1+'Sheet 2-Project Budget Summary'!$B$40/100))+(H216*(1+'Sheet 2-Project Budget Summary'!$B$39/100)))*(1+'Sheet 2-Project Budget Summary'!$B$41/100)) -> 0 | K216: 591.3 | L216: =M216*'Sheet 2-Project Budget Summary'!$B$42 -> 30.66 | M216: 30.66 | N216: 0 | O216: =$D216*(((K216*(1+'Sheet 2-Project Budget Summary'!$B$38/100))+(L216*(1+'Sheet 2-Project Budget Summary'!$B$40/100))+(N216*(1+'Sheet 2-Project Budget Summary'!$B$39/100)))*(1+'Sheet 2-Project Budget Summary'!$B$41/100)) -> 765.72474
A217: (Lenel LNL-ETHLAN)
A219: Ethernet Cable | C219: Ea | D219: 1 | E219: 0 | F219: =G219*'Sheet 2-Project Budget Summary'!$B$42 -> 0 | G219: 0 | H219: 0 | I219: =$D219*(((E219*(1+'Sheet 2-Project Budget Summary'!$B$38/100))+(F219*(1+'Sheet 2-Project Budget Summary'!$B$40/100))+(H219*(1+'Sheet 2-Project Budget Summary'!$B$39/100)))*(1+'Sheet 2-Project Budget Summary'!$B$41/100)) -> 0 | K219: 58.4 | L219: =M219*'Sheet 2-Project Budget Summary'!$B$42 -> 10.22 | M219: 10.22 | N219: 0 | O219: =$D219*(((K219*(1+'Sheet 2-Project Budget Summary'!$B$38/100))+(L219*(1+'Sheet 2-Project Budget Summary'!$B$40/100))+(N219*(1+'Sheet 2-Project Budget Summary'!$B$39/100)))*(1+'Sheet 2-Project Budget Summary'!$B$41/100)) -> 87.41458
A220: (Generic)
A222: System Controller | C222: Ea | D222: 1 | E222: 0 | F222: =G222*'Sheet 2-Project Budget Summary'!$B$42 -> 0 | G222: 0 | H222: 0 | I222: =$D222*(((E222*(1+'Sheet 2-Project Budget Summary'!$B$38/100))+(F222*(1+'Sheet 2-Project Budget Summary'!$B$40/100))+(H222*(1+'Sheet 2-Project Budget Summary'!$B$39/100)))*(1+'Sheet 2-Project Budget Summary'!$B$41/100)) -> 0 | K222: 1185.885 | L222: =M222*'Sheet 2-Project Budget Summary'!$B$42 -> 490.56 | M222: 490.56 | N222: 0 | O222: =$D222*(((K222*(1+'Sheet 2-Project Budget Summary'!$B$38/100))+(L222*(1+'Sheet 2-Project Budget Summary'!$B$40/100))+(N222*(1+'Sheet 2-Project Budget Summary'!$B$39/100)))*(1+'Sheet 2-Project Budget Summary'!$B$41/100)) -> 2238.94869
A223: (Lenel LNL-1000)
A225: Single Card Reader Module | C225: Ea | D225: 1 | E225: 0 | F225: =G225*'Sheet 2-Project Budget Summary'!$B$42 -> 0 | G225: 0 | H225: 0 | I225: =$D225*(((E225*(1+'Sheet 2-Project Budget Summary'!$B$38/100))+(F225*(1+'Sheet 2-Project Budget Summary'!$B$40/100))+(H225*(1+'Sheet 2-Project Budget Summary'!$B$39/100)))*(1+'Sheet 2-Project Budget Summary'!$B$41/100)) -> 0 | K225: 355.875 | L225: =M225*'Sheet 2-Project Budget Summary'!$B$42 -> 122.64 | M225: 122.64 | N225: 0 | O225: =$D225*(((K225*(1+'Sheet 2-Project Budget Summary'!$B$38/100))+(L225*(1+'Sheet 2-Project Budget Summary'!$B$40/100))+(N225*(1+'Sheet 2-Project Budget Summary'!$B$39/100)))*(1+'Sheet 2-Project Budget Summary'!$B$41/100)) -> 631.61571
A226: (Lenel LNL-1300)
A228: Power Supply for Door Hardware | C228: Ea | D228: 1 | E228: 0 | F228: =G228*'Sheet 2-Project Budget Summary'!$B$42 -> 0 | G228: 0 | H228: 0 | I228: =$D228*(((E228*(1+'Sheet 2-Project Budget Summary'!$B$38/100))+(F228*(1+'Sheet 2-Project Budget Summary'!$B$40/100))+(H228*(1+'Sheet 2-Project Budget Summary'!$B$39/100)))*(1+'Sheet 2-Project Budget Summary'!$B$41/100)) -> 0 | K228: 167.827 | L228: =M228*'Sheet 2-Project Budget Summary'!$B$42 -> 122.64 | M228: 122.64 | N228: 0 | O228: =$D228*(((K228*(1+'Sheet 2-Project Budget Summary'!$B$38/100))+(L228*(1+'Sheet 2-Project Budget Summary'!$B$40/100))+(N228*(1+'Sheet 2-Project Budget Summary'!$B$39/100)))*(1+'Sheet 2-Project Budget Summary'!$B$41/100)) -> 404.07763
A229: (SDC SZ-602RF)
A231: ACS Workstation with Enrollment | C231: Ea | D231: 1 | E231: 0 | F231: =G231*'Sheet 2-Project Budget Summary'!$B$42 -> 0 | G231: 0 | H231: 0 | I231: =$D231*(((E231*(1+'Sheet 2-Project Budget Summary'!$B$38/100))+(F231*(1+'Sheet 2-Project Budget Summary'!$B$40/100))+(H231*(1+'Sheet 2-Project Budget Summary'!$B$39/100)))*(1+'Sheet 2-Project Budget Summary'!$B$41/100)) -> 0 | K231: 8280.39 | L231: =M231*'Sheet 2-Project Budget Summary'!$B$42 -> 981.12 | M231: 981.12 | N231: 0 | O231: =$D231*(((K231*(1+'Sheet 2-Project Budget Summary'!$B$38/100))+(L231*(1+'Sheet 2-Project Budget Summary'!$B$40/100))+(N231*(1+'Sheet 2-Project Budget Summary'!$B$39/100)))*(1+'Sheet 2-Project Budget Summary'!$B$41/100)) -> 11627.32758
A232: (Lenel PCC-32ESI, CAM500-KUSB, P210, SWC-32ESI)
A234: Interior 360-Degree Motion Detector - Dual Technology | C234: Ea | D234: 3 | E234: 0 | F234: =G234*'Sheet 2-Project Budget Summary'!$B$42 -> 0 | G234: 0 | H234: 0 | I234: =$D234*(((E234*(1+'Sheet 2-Project Budget Summary'!$B$38/100))+(F234*(1+'Sheet 2-Project Budget Summary'!$B$40/100))+(H234*(1+'Sheet 2-Project Budget Summary'!$B$39/100)))*(1+'Sheet 2-Project Budget Summary'!$B$41/100)) -> 0 | K234: 189.8 | L234: =M234*'Sheet 2-Project Budget Summary'!$B$42 -> 213.16 | M234: 213.16 | N234: 0 | O234: =$D234*(((K234*(1+'Sheet 2-Project Budget Summary'!$B$38/100))+(L234*(1+'Sheet 2-Project Budget Summary'!$B$40/100))+(N234*(1+'Sheet 2-Project Budget Summary'!$B$39/100)))*(1+'Sheet 2-Project Budget Summary'!$B$41/100)) -> 1737.08172
A235: (Detection Systems DS-9370)
A237: Input Module for Panel | C237: Ea | D237: 1 | E237: 0 | F237: =G237*'Sheet 2-Project Budget Summary'!$B$42 -> 0 | G237: 0 | H237: 0 | I237: =$D237*(((E237*(1+'Sheet 2-Project Budget Summary'!$B$38/100))+(F237*(1+'Sheet 2-Project Budget Summary'!$B$40/100))+(H237*(1+'Sheet 2-Project Budget Summary'!$B$39/100)))*(1+'Sheet 2-Project Budget Summary'!$B$41/100)) -> 0 | K237: 766.5 | L237: =M237*'Sheet 2-Project Budget Summary'!$B$42 -> 122.64 | M237: 122.64 | N237: 0 | O237: =$D237*(((K237*(1+'Sheet 2-Project Budget Summary'!$B$38/100))+(L237*(1+'Sheet 2-Project Budget Summary'!$B$40/100))+(N237*(1+'Sheet 2-Project Budget Summary'!$B$39/100)))*(1+'Sheet 2-Project Budget Summary'!$B$41/100)) -> 1128.47196
A238: (Lenel LNL-1100)
A240: Interior Fixed Camera | C240: Ea | D240: 3 | E240: 0 | F240: =G240*'Sheet 2-Project Budget Summary'!$B$42 -> 0 | G240: 0 | H240: 0 | I240: =$D240*(((E240*(1+'Sheet 2-Project Budget Summary'!$B$38/100))+(F240*(1+'Sheet 2-Project Budget Summary'!$B$40/100))+(H240*(1+'Sheet 2-Project Budget Summary'!$B$39/100)))*(1+'Sheet 2-Project Budget Summary'!$B$41/100)) -> 0 | K240: 715.4 | L240: =M240*'Sheet 2-Project Budget Summary'!$B$42 -> 181.697 | M240: 181.697 | N240: 0 | O240: =$D240*(((K240*(1+'Sheet 2-Project Budget Summary'!$B$38/100))+(L240*(1+'Sheet 2-Project Budget Summary'!$B$40/100))+(N240*(1+'Sheet 2-Project Budget Summary'!$B$39/100)))*(1+'Sheet 2-Project Budget Summary'!$B$41/100)) -> 3490.306149
A241: (Pelco ICS150-CDV4A-incl lens, mount, encl.)
A243: Digital Video Recorder (600GbHD) | C243: Ea | D243: 1 | E243: 0 | F243: =G243*'Sheet 2-Project Budget Summary'!$B$42 -> 0 | G243: 0 | H243: 0 | I243: =$D243*(((E243*(1+'Sheet 2-Project Budget Summary'!$B$38/100))+(F243*(1+'Sheet 2-Project Budget Summary'!$B$40/100))+(H243*(1+'Sheet 2-Project Budget Summary'!$B$39/100)))*(1+'Sheet 2-Project Budget Summary'!$B$41/100)) -> 0 | K243: 11040.885 | L243: =M243*'Sheet 2-Project Budget Summary'!$B$42 -> 490.56 | M243: 490.56 | N243: 0 | O243: =$D243*(((K243*(1+'Sheet 2-Project Budget Summary'!$B$38/100))+(L243*(1+'Sheet 2-Project Budget Summary'!$B$40/100))+(N243*(1+'Sheet 2-Project Budget Summary'!$B$39/100)))*(1+'Sheet 2-Project Budget Summary'!$B$41/100)) -> 14163.49869
A244: (Lenel DVS-16-S)
A246: Matrix Switcher | C246: Ea | D246: 1 | E246: 0 | F246: =G246*'Sheet 2-Project Budget Summary'!$B$42 -> 0 | G246: 0 | H246: 0 | I246: =$D246*(((E246*(1+'Sheet 2-Project Budget Summary'!$B$38/100))+(F246*(1+'Sheet 2-Project Budget Summary'!$B$40/100))+(H246*(1+'Sheet 2-Project Budget Summary'!$B$39/100)))*(1+'Sheet 2-Project Budget Summary'!$B$41/100)) -> 0 | K246: 2084.88 | L246: =M246*'Sheet 2-Project Budget Summary'!$B$42 -> 490.56 | M246: 490.56 | N246: 0 | O246: =$D246*(((K246*(1+'Sheet 2-Project Budget Summary'!$B$38/100))+(L246*(1+'Sheet 2-Project Budget Summary'!$B$40/100))+(N246*(1+'Sheet 2-Project Budget Summary'!$B$39/100)))*(1+'Sheet 2-Project Budget Summary'!$B$41/100)) -> 3326.73264
A247: (Pelco CM6700-MXB4, CM9760-CDU-T, PV130)
A249: Keyboard Controller | C249: Ea | D249: 1 | E249: 0 | F249: =G249*'Sheet 2-Project Budget Summary'!$B$42 -> 0 | G249: 0 | H249: 0 | I249: =$D249*(((E249*(1+'Sheet 2-Project Budget Summary'!$B$38/100))+(F249*(1+'Sheet 2-Project Budget Summary'!$B$40/100))+(H249*(1+'Sheet 2-Project Budget Summary'!$B$39/100)))*(1+'Sheet 2-Project Budget Summary'!$B$41/100)) -> 0 | K249: 851.18 | L249: =M249*'Sheet 2-Project Budget Summary'!$B$42 -> 122.64 | M249: 122.64 | N249: 0 | O249: =$D249*(((K249*(1+'Sheet 2-Project Budget Summary'!$B$38/100))+(L249*(1+'Sheet 2-Project Budget Summary'!$B$40/100))+(N249*(1+'Sheet 2-Project Budget Summary'!$B$39/100)))*(1+'Sheet 2-Project Budget Summary'!$B$41/100)) -> 1230.93476
A250: (Pelco KBD300A)
A252: Camera Power Supply and Enclosure | C252: Ea | D252: 1 | E252: 0 | F252: =G252*'Sheet 2-Project Budget Summary'!$B$42 -> 0 | G252: 0 | H252: 0 | I252: =$D252*(((E252*(1+'Sheet 2-Project Budget Summary'!$B$38/100))+(F252*(1+'Sheet 2-Project Budget Summary'!$B$40/100))+(H252*(1+'Sheet 2-Project Budget Summary'!$B$39/100)))*(1+'Sheet 2-Project Budget Summary'!$B$41/100)) -> 0 | K252: 91.98 | L252: =M252*'Sheet 2-Project Budget Summary'!$B$42 -> 61.32 | M252: 61.32 | N252: 0 | O252: =$D252*(((K252*(1+'Sheet 2-Project Budget Summary'!$B$38/100))+(L252*(1+'Sheet 2-Project Budget Summary'!$B$40/100))+(N252*(1+'Sheet 2-Project Budget Summary'!$B$39/100)))*(1+'Sheet 2-Project Budget Summary'!$B$41/100)) -> 211.79928
A253: (Pelco MCS4-2)
A255: 17" Flat Screen LCD Monitor | C255: Ea | D255: 1 | E255: 0 | F255: =G255*'Sheet 2-Project Budget Summary'!$B$42 -> 0 | G255: 0 | H255: 0 | I255: =$D255*(((E255*(1+'Sheet 2-Project Budget Summary'!$B$38/100))+(F255*(1+'Sheet 2-Project Budget Summary'!$B$40/100))+(H255*(1+'Sheet 2-Project Budget Summary'!$B$39/100)))*(1+'Sheet 2-Project Budget Summary'!$B$41/100)) -> 0 | K255: 1852.667 | L255: =M255*'Sheet 2-Project Budget Summary'!$B$42 -> 15.33 | M255: 15.33 | N255: 0 | O255: =$D255*(((K255*(1+'Sheet 2-Project Budget Summary'!$B$38/100))+(L255*(1+'Sheet 2-Project Budget Summary'!$B$40/100))+(N255*(1+'Sheet 2-Project Budget Summary'!$B$39/100)))*(1+'Sheet 2-Project Budget Summary'!$B$41/100)) -> 2266.85294
A256: (Bosch MON171CL)
A258: Uninterruptible Power Supply | C258: Ea | D258: 1 | E258: 0 | F258: =G258*'Sheet 2-Project Budget Summary'!$B$42 -> 0 | G258: 0 | H258: 0 | I258: =$D258*(((E258*(1+'Sheet 2-Project Budget Summary'!$B$38/100))+(F258*(1+'Sheet 2-Project Budget Summary'!$B$40/100))+(H258*(1+'Sheet 2-Project Budget Summary'!$B$39/100)))*(1+'Sheet 2-Project Budget Summary'!$B$41/100)) -> 0 | K258: 1750.905 | L258: =M258*'Sheet 2-Project Budget Summary'!$B$42 -> 61.32 | M258: 61.32 | N258: 0 | O258: =$D258*(((K258*(1+'Sheet 2-Project Budget Summary'!$B$38/100))+(L258*(1+'Sheet 2-Project Budget Summary'!$B$40/100))+(N258*(1+'Sheet 2-Project Budget Summary'!$B$39/100)))*(1+'Sheet 2-Project Budget Summary'!$B$41/100)) -> 2219.09853
A259: (Powerware 9125 2000)
A261: Equipment Rack | C261: Ea | D261: 1 | E261: 0 | F261: =G261*'Sheet 2-Project Budget Summary'!$B$42 -> 0 | G261: 0 | H261: 0 | I261: =$D261*(((E261*(1+'Sheet 2-Project Budget Summary'!$B$38/100))+(F261*(1+'Sheet 2-Project Budget Summary'!$B$40/100))+(H261*(1+'Sheet 2-Project Budget Summary'!$B$39/100)))*(1+'Sheet 2-Project Budget Summary'!$B$41/100)) -> 0 | K261: 3650 | L261: =M261*'Sheet 2-Project Budget Summary'!$B$42 -> 490.56 | M261: 490.56 | N261: 0 | O261: =$D261*(((K261*(1+'Sheet 2-Project Budget Summary'!$B$38/100))+(L261*(1+'Sheet 2-Project Budget Summary'!$B$40/100))+(N261*(1+'Sheet 2-Project Budget Summary'!$B$39/100)))*(1+'Sheet 2-Project Budget Summary'!$B$41/100)) -> 5220.52784
A262: (Middle Atlantic VRK-44-31H, MW-LVT, PVFD-44, etc)
A264: Wiring 18-2c | C264: Lf | D264: 1050 | E264: 0 | F264: =G264*'Sheet 2-Project Budget Summary'!$B$42 -> 0 | G264: 0 | H264: 0 | I264: =$D264*(((E264*(1+'Sheet 2-Project Budget Summary'!$B$38/100))+(F264*(1+'Sheet 2-Project Budget Summary'!$B$40/100))+(H264*(1+'Sheet 2-Project Budget Summary'!$B$39/100)))*(1+'Sheet 2-Project Budget Summary'!$B$41/100)) -> 0 | K264: 0.1168 | L264: =M264*'Sheet 2-Project Budget Summary'!$B$42 -> 0.5475 | M264: 0.5475 | N264: 0 | O264: =$D264*(((K264*(1+'Sheet 2-Project Budget Summary'!$B$38/100))+(L264*(1+'Sheet 2-Project Budget Summary'!$B$40/100))+(N264*(1+'Sheet 2-Project Budget Summary'!$B$39/100)))*(1+'Sheet 2-Project Budget Summary'!$B$41/100)) -> 1090.614525
A265: (CSC 151000)
A267: Wiring 18-4c | C267: Lf | D267: 750 | E267: 0 | F267: =G267*'Sheet 2-Project Budget Summary'!$B$42 -> 0 | G267: 0 | H267: 0 | I267: =$D267*(((E267*(1+'Sheet 2-Project Budget Summary'!$B$38/100))+(F267*(1+'Sheet 2-Project Budget Summary'!$B$40/100))+(H267*(1+'Sheet 2-Project Budget Summary'!$B$39/100)))*(1+'Sheet 2-Project Budget Summary'!$B$41/100)) -> 0 | K267: 0.23214 | L267: =M267*'Sheet 2-Project Budget Summary'!$B$42 -> 0.5475 | M267: 0.5475 | N267: 0 | O267: =$D267*(((K267*(1+'Sheet 2-Project Budget Summary'!$B$38/100))+(L267*(1+'Sheet 2-Project Budget Summary'!$B$40/100))+(N267*(1+'Sheet 2-Project Budget Summary'!$B$39/100)))*(1+'Sheet 2-Project Budget Summary'!$B$41/100)) -> 883.681425
A268: (CSC 151200)
A270: Wiring 18-6c | C270: Lf | D270: 150 | E270: 0 | F270: =G270*'Sheet 2-Project Budget Summary'!$B$42 -> 0 | G270: 0 | H270: 0 | I270: =$D270*(((E270*(1+'Sheet 2-Project Budget Summary'!$B$38/100))+(F270*(1+'Sheet 2-Project Budget Summary'!$B$40/100))+(H270*(1+'Sheet 2-Project Budget Summary'!$B$39/100)))*(1+'Sheet 2-Project Budget Summary'!$B$41/100)) -> 0 | K270: 0.33288 | L270: =M270*'Sheet 2-Project Budget Summary'!$B$42 -> 0.5475 | M270: 0.5475 | N270: 0 | O270: =$D270*(((K270*(1+'Sheet 2-Project Budget Summary'!$B$38/100))+(L270*(1+'Sheet 2-Project Budget Summary'!$B$40/100))+(N270*(1+'Sheet 2-Project Budget Summary'!$B$39/100)))*(1+'Sheet 2-Project Budget Summary'!$B$41/100)) -> 195.020595
A271: (CSC 151230)
A273: Coaxial/Power Cable RG-59U with 18/2c | C273: Lf | D273: 450 | E273: 0 | F273: =G273*'Sheet 2-Project Budget Summary'!$B$42 -> 0 | G273: 0 | H273: 0 | I273: =$D273*(((E273*(1+'Sheet 2-Project Budget Summary'!$B$38/100))+(F273*(1+'Sheet 2-Project Budget Summary'!$B$40/100))+(H273*(1+'Sheet 2-Project Budget Summary'!$B$39/100)))*(1+'Sheet 2-Project Budget Summary'!$B$41/100)) -> 0 | K273: 0.89352 | L273: =M273*'Sheet 2-Project Budget Summary'!$B$42 -> 0.5548 | M273: 0.5548 | N273: 0 | O273: =$D273*(((K273*(1+'Sheet 2-Project Budget Summary'!$B$38/100))+(L273*(1+'Sheet 2-Project Budget Summary'!$B$40/100))+(N273*(1+'Sheet 2-Project Budget Summary'!$B$39/100)))*(1+'Sheet 2-Project Budget Summary'!$B$41/100)) -> 895.71438
A274: (CSC 516681)
A276: 1/2" Rigid Galvanized Conduit | C276: Lf | D276: 1950 | E276: 3.5624 | F276: =G276*'Sheet 2-Project Budget Summary'!$B$42 -> 5.4458 | G276: 5.4458 | H276: 0 | I276: =$D276*(((E276*(1+'Sheet 2-Project Budget Summary'!$B$38/100))+(F276*(1+'Sheet 2-Project Budget Summary'!$B$40/100))+(H276*(1+'Sheet 2-Project Budget Summary'!$B$39/100)))*(1+'Sheet 2-Project Budget Summary'!$B$41/100)) -> 25810.53189 | K276: 0 | L276: =M276*'Sheet 2-Project Budget Summary'!$B$42 -> 0 | M276: 0 | N276: 0 | O276: =$D276*(((K276*(1+'Sheet 2-Project Budget Summary'!$B$38/100))+(L276*(1+'Sheet 2-Project Budget Summary'!$B$40/100))+(N276*(1+'Sheet 2-Project Budget Summary'!$B$39/100)))*(1+'Sheet 2-Project Budget Summary'!$B$41/100)) -> 0
A277: (to motion and BMS's, door to panel)
A279: 120 Volt Drop | C279: Ls | D279: 5 | E279: 558.304 | F279: =G279*'Sheet 2-Project Budget Summary'!$B$42 -> 917.245 | G279: 917.245 | H279: 0 | I279: =$D279*(((E279*(1+'Sheet 2-Project Budget Summary'!$B$38/100))+(F279*(1+'Sheet 2-Project Budget Summary'!$B$40/100))+(H279*(1+'Sheet 2-Project Budget Summary'!$B$39/100)))*(1+'Sheet 2-Project Budget Summary'!$B$41/100)) -> 10894.56198 | K279: 0 | L279: =M279*'Sheet 2-Project Budget Summary'!$B$42 -> 0 | M279: 0 | N279: 0 | O279: =$D279*(((K279*(1+'Sheet 2-Project Budget Summary'!$B$38/100))+(L279*(1+'Sheet 2-Project Budget Summary'!$B$40/100))+(N279*(1+'Sheet 2-Project Budget Summary'!$B$39/100)))*(1+'Sheet 2-Project Budget Summary'!$B$41/100)) -> 0
A280: (ACS panel & workstation, video system panel & workstation, DVR)
C282: Ea | D282: 0 | E282: 0 | F282: =G282*'Sheet 2-Project Budget Summary'!$B$42 -> 0 | G282: 0 | H282: 0 | I282: =$D282*(((E282*(1+'Sheet 2-Project Budget Summary'!$B$38/100))+(F282*(1+'Sheet 2-Project Budget Summary'!$B$40/100))+(H282*(1+'Sheet 2-Project Budget Summary'!$B$39/100)))*(1+'Sheet 2-Project Budget Summary'!$B$41/100)) -> 0 | K282: 0 | L282: =M282*'Sheet 2-Project Budget Summary'!$B$42 -> 0 | M282: 0 | N282: 0 | O282: =$D282*(((K282*(1+'Sheet 2-Project Budget Summary'!$B$38/100))+(L282*(1+'Sheet 2-Project Budget Summary'!$B$40/100))+(N282*(1+'Sheet 2-Project Budget Summary'!$B$39/100)))*(1+'Sheet 2-Project Budget Summary'!$B$41/100)) -> 0
C285: Ea | D285: 0 | E285: 0 | F285: =G285*'Sheet 2-Project Budget Summary'!$B$42 -> 0 | G285: 0 | H285: 0 | I285: =$D285*(((E285*(1+'Sheet 2-Project Budget Summary'!$B$38/100))+(F285*(1+'Sheet 2-Project Budget Summary'!$B$40/100))+(H285*(1+'Sheet 2-Project Budget Summary'!$B$39/100)))*(1+'Sheet 2-Project Budget Summary'!$B$41/100)) -> 0 | K285: 0 | L285: =M285*'Sheet 2-Project Budget Summary'!$B$42 -> 0 | M285: 0 | N285: 0 | O285: =$D285*(((K285*(1+'Sheet 2-Project Budget Summary'!$B$38/100))+(L285*(1+'Sheet 2-Project Budget Summary'!$B$40/100))+(N285*(1+'Sheet 2-Project Budget Summary'!$B$39/100)))*(1+'Sheet 2-Project Budget Summary'!$B$41/100)) -> 0
C288: Ea | D288: 0 | E288: 0 | F288: =G288*'Sheet 2-Project Budget Summary'!$B$42 -> 0 | G288: 0 | H288: 0 | I288: =$D288*(((E288*(1+'Sheet 2-Project Budget Summary'!$B$38/100))+(F288*(1+'Sheet 2-Project Budget Summary'!$B$40/100))+(H288*(1+'Sheet 2-Project Budget Summary'!$B$39/100)))*(1+'Sheet 2-Project Budget Summary'!$B$41/100)) -> 0 | K288: 0 | L288: =M288*'Sheet 2-Project Budget Summary'!$B$42 -> 0 | M288: 0 | N288: 0 | O288: =$D288*(((K288*(1+'Sheet 2-Project Budget Summary'!$B$38/100))+(L288*(1+'Sheet 2-Project Budget Summary'!$B$40/100))+(N288*(1+'Sheet 2-Project Budget Summary'!$B$39/100)))*(1+'Sheet 2-Project Budget Summary'!$B$41/100)) -> 0
A291: TOTALS | I291: =SUM(I192:I289) -> 36705.09387 | O291: =SUM(O192:O289) -> 59478.6185
A293: TYPICAL INTERIOR INTRUSION DETECTION ZONE
A294: Typical interior intrusion detection zone provides protection of interior space with a dual technology, panoramic motion detector.
A295: LOW, MEDIUM, AND HIGH RISK
A296: Typical interior intrusion detection zone includes a dual technology, panoramic motion detector designed for interior use. Cost includes panel, power supply, and all modules required. Cost also includes all wiring, conduit, and 120 VAC drops required to support equipment.
E298: Supporting Infrastructure | K298: ESS Equipment
A299: Description | C299: Unit | D299: Qty | E299: Materials | F299: Labor | G299: Labor | H299: Equipment | I299: Total1 | K299: Materials | L299: Labor | M299: Labor | N299: Equipment | O299: Total1
A301: Panel and Power Supply (supports 16 devices) | C301: Ea | D301: 1 | E301: 0 | F301: =G301*'Sheet 2-Project Budget Summary'!$B$42 -> 0 | G301: 0 | H301: 0 | I301: =$D301*(((E301*(1+'Sheet 2-Project Budget Summary'!$B$38/100))+(F301*(1+'Sheet 2-Project Budget Summary'!$B$40/100))+(H301*(1+'Sheet 2-Project Budget Summary'!$B$39/100)))*(1+'Sheet 2-Project Budget Summary'!$B$41/100)) -> 0 | K301: 366.752 | L301: =M301*'Sheet 2-Project Budget Summary'!$B$42 -> 122.64 | M301: 122.64 | N301: 0 | O301: =$D301*(((K301*(1+'Sheet 2-Project Budget Summary'!$B$38/100))+(L301*(1+'Sheet 2-Project Budget Summary'!$B$40/100))+(N301*(1+'Sheet 2-Project Budget Summary'!$B$39/100)))*(1+'Sheet 2-Project Budget Summary'!$B$41/100)) -> 644.77688
A302: (Lenel LNL-OLS75CTX)
A304: Battery Back-Up Power Supply (supports 16 devices) | C304: Ea | D304: 1 | E304: 0 | F304: =G304*'Sheet 2-Project Budget Summary'!$B$42 -> 0 | G304: 0 | H304: 0 | I304: =$D304*(((E304*(1+'Sheet 2-Project Budget Summary'!$B$38/100))+(F304*(1+'Sheet 2-Project Budget Summary'!$B$40/100))+(H304*(1+'Sheet 2-Project Budget Summary'!$B$39/100)))*(1+'Sheet 2-Project Budget Summary'!$B$41/100)) -> 0 | K304: 75.555 | L304: =M304*'Sheet 2-Project Budget Summary'!$B$42 -> 15.184 | M304: 15.184 | N304: 0 | O304: =$D304*(((K304*(1+'Sheet 2-Project Budget Summary'!$B$38/100))+(L304*(1+'Sheet 2-Project Budget Summary'!$B$40/100))+(N304*(1+'Sheet 2-Project Budget Summary'!$B$39/100)))*(1+'Sheet 2-Project Budget Summary'!$B$41/100)) -> 116.308126
A305: (Lenel ABT-12)
A306: (Lenel ABT-12)
A307: Ethernet Module to Connect to LAN | C307: Ea | D307: 1 | E307: 0 | F307: =G307*'Sheet 2-Project Budget Summary'!$B$42 -> 0 | G307: 0 | H307: 0 | I307: =$D307*(((E307*(1+'Sheet 2-Project Budget Summary'!$B$38/100))+(F307*(1+'Sheet 2-Project Budget Summary'!$B$40/100))+(H307*(1+'Sheet 2-Project Budget Summary'!$B$39/100)))*(1+'Sheet 2-Project Budget Summary'!$B$41/100)) -> 0 | K307: 591.3 | L307: =M307*'Sheet 2-Project Budget Summary'!$B$42 -> 30.66 | M307: 30.66 | N307: 0 | O307: =$D307*(((K307*(1+'Sheet 2-Project Budget Summary'!$B$38/100))+(L307*(1+'Sheet 2-Project Budget Summary'!$B$40/100))+(N307*(1+'Sheet 2-Project Budget Summary'!$B$39/100)))*(1+'Sheet 2-Project Budget Summary'!$B$41/100)) -> 765.72474
A308: (Lenel LNL-ETHLAN)
A310: Ethernet Cable | C310: Ea | D310: 1 | E310: 0 | F310: =G310*'Sheet 2-Project Budget Summary'!$B$42 -> 0 | G310: 0 | H310: 0 | I310: =$D310*(((E310*(1+'Sheet 2-Project Budget Summary'!$B$38/100))+(F310*(1+'Sheet 2-Project Budget Summary'!$B$40/100))+(H310*(1+'Sheet 2-Project Budget Summary'!$B$39/100)))*(1+'Sheet 2-Project Budget Summary'!$B$41/100)) -> 0 | K310: 58.4 | L310: =M310*'Sheet 2-Project Budget Summary'!$B$42 -> 10.22 | M310: 10.22 | N310: 0 | O310: =$D310*(((K310*(1+'Sheet 2-Project Budget Summary'!$B$38/100))+(L310*(1+'Sheet 2-Project Budget Summary'!$B$40/100))+(N310*(1+'Sheet 2-Project Budget Summary'!$B$39/100)))*(1+'Sheet 2-Project Budget Summary'!$B$41/100)) -> 87.41458
A311: (Generic)
A313: System Controller (supports 16 devices) | C313: Ea | D313: 1 | E313: 0 | F313: =G313*'Sheet 2-Project Budget Summary'!$B$42 -> 0 | G313: 0 | H313: 0 | I313: =$D313*(((E313*(1+'Sheet 2-Project Budget Summary'!$B$38/100))+(F313*(1+'Sheet 2-Project Budget Summary'!$B$40/100))+(H313*(1+'Sheet 2-Project Budget Summary'!$B$39/100)))*(1+'Sheet 2-Project Budget Summary'!$B$41/100)) -> 0 | K313: 1185.885 | L313: =M313*'Sheet 2-Project Budget Summary'!$B$42 -> 490.56 | M313: 490.56 | N313: 0 | O313: =$D313*(((K313*(1+'Sheet 2-Project Budget Summary'!$B$38/100))+(L313*(1+'Sheet 2-Project Budget Summary'!$B$40/100))+(N313*(1+'Sheet 2-Project Budget Summary'!$B$39/100)))*(1+'Sheet 2-Project Budget Summary'!$B$41/100)) -> 2238.94869
A314: (Lenel LNL-1000)
A316: Input Module | C316: Ea | D316: 1 | E316: 0 | F316: =G316*'Sheet 2-Project Budget Summary'!$B$42 -> 0 | G316: 0 | H316: 0 | I316: =$D316*(((E316*(1+'Sheet 2-Project Budget Summary'!$B$38/100))+(F316*(1+'Sheet 2-Project Budget Summary'!$B$40/100))+(H316*(1+'Sheet 2-Project Budget Summary'!$B$39/100)))*(1+'Sheet 2-Project Budget Summary'!$B$41/100)) -> 0 | K316: 766.5 | L316: =M316*'Sheet 2-Project Budget Summary'!$B$42 -> 122.64 | M316: 122.64 | N316: 0 | O316: =$D316*(((K316*(1+'Sheet 2-Project Budget Summary'!$B$38/100))+(L316*(1+'Sheet 2-Project Budget Summary'!$B$40/100))+(N316*(1+'Sheet 2-Project Budget Summary'!$B$39/100)))*(1+'Sheet 2-Project Budget Summary'!$B$41/100)) -> 1128.47196
A317: (Lenel LNL - 1100)
A319: Interior 360-Degree Motion Detector - Dual Technology | C319: Ea | D319: 1 | E319: 0 | F319: =G319*'Sheet 2-Project Budget Summary'!$B$42 -> 0 | G319: 0 | H319: 0 | I319: =$D319*(((E319*(1+'Sheet 2-Project Budget Summary'!$B$38/100))+(F319*(1+'Sheet 2-Project Budget Summary'!$B$40/100))+(H319*(1+'Sheet 2-Project Budget Summary'!$B$39/100)))*(1+'Sheet 2-Project Budget Summary'!$B$41/100)) -> 0 | K319: 189.8 | L319: =M319*'Sheet 2-Project Budget Summary'!$B$42 -> 213.16 | M319: 213.16 | N319: 0 | O319: =$D319*(((K319*(1+'Sheet 2-Project Budget Summary'!$B$38/100))+(L319*(1+'Sheet 2-Project Budget Summary'!$B$40/100))+(N319*(1+'Sheet 2-Project Budget Summary'!$B$39/100)))*(1+'Sheet 2-Project Budget Summary'!$B$41/100)) -> 579.02724
A320: (Detection Systems DS-9370)
A322: Wiring 18-4c | C322: Lf | D322: 150 | E322: 0 | F322: =G322*'Sheet 2-Project Budget Summary'!$B$42 -> 0 | G322: 0 | H322: 0 | I322: =$D322*(((E322*(1+'Sheet 2-Project Budget Summary'!$B$38/100))+(F322*(1+'Sheet 2-Project Budget Summary'!$B$40/100))+(H322*(1+'Sheet 2-Project Budget Summary'!$B$39/100)))*(1+'Sheet 2-Project Budget Summary'!$B$41/100)) -> 0 | K322: 0.23214 | L322: =M322*'Sheet 2-Project Budget Summary'!$B$42 -> 0.5475 | M322: 0.5475 | N322: 0 | O322: =$D322*(((K322*(1+'Sheet 2-Project Budget Summary'!$B$38/100))+(L322*(1+'Sheet 2-Project Budget Summary'!$B$40/100))+(N322*(1+'Sheet 2-Project Budget Summary'!$B$39/100)))*(1+'Sheet 2-Project Budget Summary'!$B$41/100)) -> 176.736285
A323: (CSC 151200)
... 467 more rows
